{"text_format":"1","workbook":"xlsx","n_sheets":7,"sheets":["Prompt","C100","C200","C300","C400","C500","Enviar"],"not_rendered":{"charts":0,"images":6,"macros":1,"external_links":0,"defined_names":1,"comments":1,"pivot_tables":0},"unopened":[],"bounds":{"document_bytes":16777216,"sheet_cells":100000,"rows_first":2000,"rows_last":500,"rows_between":2000,"halvings":0,"cell_chars":16384,"cell_head_chars":4096},"cells_cut":0,"cells_raw":0,"read":"whole","date_system":"1900"}

{"sheet":"Prompt","index":0,"n_rows":79,"n_cols":4,"rows_kept":79,"cut":false,"hidden":true,"merged":[[1,3,2,6],[4,1,6,8],[43,1,44,8],[78,1,79,8],[9,1,10,8]]}
[]
[null,null,null,"¡ATENCIÓN!"]
[]
[]
[null,"Para hacer uso de las funcionalidades de esta Cédula Electrónica debe habilitar macros"]
[]
[]
[]
[]
[null,"Si utiliza Excel 2013 siga el siguiente procedimiento:"]
[]
[]
[]
[]
[]
[]
[]
[]
[]
[]
[]
[]
[]
[]
[]
[]
[]
[]
[]
[]
[]
[]
[]
[]
[]
[]
[]
[]
[]
[]
[]
[]
[]
[null,"Si utiliza Excel 2007 siga el siguiente procedimiento:"]
[]
[]
[]
[]
[]
[]
[]
[]
[]
[]
[]
[]
[]
[]
[]
[]
[]
[]
[]
[]
[]
[]
[]
[]
[]
[]
[]
[]
[]
[]
[]
[]
[]
[]
[null,"Si utiliza Excel 2000, 2002, 2003 siga el siguiente procedimiento:"]

{"sheet":"C100","index":1,"n_rows":215,"n_cols":22,"rows_kept":215,"cut":false,"hidden":false,"merged":[[152,5,152,9],[157,16,157,20],[180,16,180,20],[196,5,196,9],[210,5,210,10],[122,14,122,20],[123,14,123,20],[138,5,138,9],[139,5,139,9],[144,18,144,21],[110,21,111,21],[113,21,114,21],[115,21,116,21],[117,21,118,21],[121,14,121,20],[1,4,1,19],[2,4,2,19],[3,4,3,19],[1,20,1,21],[2,20,3,21],[39,1,39,22],[50,5,50,10],[23,1,23,22],[26,5,26,7],[26,19,26,20],[28,5,28,20],[30,16,30,20],[30,5,30,13],[45,13,46,21],[75,14,75,20],[103,14,103,20],[104,21,105,21],[106,21,107,21],[108,21,109,21]]}
[]
[null,null,null,null,"CENSO EDUCATIVO 2024",null,null,null,null,null,null,null,null,null,null,null,null,null,null,null,"CÉDULA"]
[null,null,null,null,"EDUCACIÓN BÁSICA ESPECIAL - INICIAL",null,null,null,null,null,null,null,null,null,null,null,null,null,null,null,"8AI"]
[null,null,null,null,"ESCOLARIZADA"]
[null,"Versión :",null,"GA-1"]
[null,"INSTRUCCIONES DEL FORMATO ELECTRÓNICO "]
[]
[]
[]
[]
[]
[]
[]
[]
[]
[]
[]
[]
[]
[]
[]
[]
[]
[null,"IDENTIFICACIÓN DEL SERVICIO EDUCATIVO"]
[]
[]
[null,"1. CÓDIGO MODULAR :",null,null,null,null,null,null,null,null,null,null,null,null,null,null,null,"2. CÓDIGO DE LOCAL EDUCATIVO :"]
[]
[null,"3. NOMBRE DEL SERVICIO :",null,null,null,""]
[]
[null,"4. DISTRITO :",null,null,null,null,null,null,null,null,null,null,null,null,null,"LOCALIDAD :"]
[]
[]
[]
[]
[]
[null,"GESTIÓN DE LA INSTITUCIÓN EDUCATIVA :",null,null,null,null,null,null,null," 1 - Pública de gestión directa",null,null,null,null," 2 - Pública de gestión privada",null,null,null,null," 3 - Privada"]
[]
[]
[null,"100. CARACTERÍSTICAS DEL SERVICIO EDUCATIVO"]
[]
[null,"101. EN LOS ÚLTIMOS TRES MESES, ¿QUÉ PROGRAMAS O CAMPAÑAS DE SALUD SE OFRECIERON A",null,null,null,null,null,null,null,null,null,null,"103. ¿EL SERVICIO/NIVEL EDUCATIVO CUENTA CON DOCUMENTO DE GESTIÓN?"]
[null,null,"LOS ESTUDIANTES EN ESTE SERVICIO/NIVEL EDUCATIVO ?"]
[null,null,"Marque con una “X” una o más opciones",null,null,null,null,null,null,null,null,null,null,"Sí",null,null,null," No  "]
[]
[null,null,null,null,"Qali Warma",null,null,null,null,null,null,null,null,"El documento de gestión aplica para II.EE. unidocentes, multigrado y polidocentes incompleta."]
[null,null,null,null,"Cuna más"]
[null,null,null,null,"Vacunación"]
[null,null,null,null,"Control de Crecimiento y Desarrollo",null,null,null,null,null,null,null,"104. ¿CON QUÉ INSTRUMENTOS DE GESTIÓN CUENTA EL SERVICIO/NIVEL"]
[null,null,null,null,"Despistaje de anemia",null,null,null,null,null,null,null,null,"EDUCATIVO, ANTES DEL INICIO DEL AÑO ESCOLAR?"]
[null,null,null,null,"Otro",null,null,null,null,null,null,null,null,"Marque con una “X” una o más opciones"]
[null,null,null,null,"Ninguno"]
[null,null,null,null,null,null,null,null,null,null,null,null,null,null,null,"Proyecto educativo institucional (PEI)"]
[null,"102.  LA ATENCIÓN DEL CEBE ES:",null,null,null,null,null,null,null,null,null,null,null,null,null,"Plan anual de trabajo (PAT)"]
[null,null,"Marque con una “X” una opción",null,null,null,null,null,null,null,null,null,null,null,null,"Proyecto curricular de la Institución Educativa (PCI)"]
[null,null,null,null,null,null,null,null,null,null,null,null,null,null,null,"Reglamento interno (RI)"]
[null,null,null,null,"Unidocente"]
[null,null,null,null,"Polidocente incompleto o multigrado"]
[null,null,null,null,"Polidocente completo",null,null,null,"Pase a la pregunta 104"]
[]
[]
[null,"105. EL SERVICIO/NIVEDL EDUCATIVO, ¿PLANIFICÓ ACTIVIDADES EN EL/LOS DOCUMENTOS DE",null,null,null,null,null,null,null,null,null,null,"109.  ¿CUÁL DE LAS SIGUIENTES AFIRMACIONES CONSIDERA QUE EXPRESA MEJOR SU OPINIÓN"]
[null,null,"GESTIÓN?",null,null,null,null,null,null,null,null,null,null,"RESPECTO  A  QUE  EL  DIRECTOR(A) DE ESTE SERVICIO/NIVEL EDUCATIVO TENGA"]
[null,null,null,null,null,null,null,null,null,null,null,null,null,"ASIGNADA AULA A CARGO U HORAS LECTIVAS?"]
[null,null,"Sí","",null,null," No  ",null,null,null,null,null,null,"Marque con una “X” una opción"]
[]
[null,null,null,null,null,null,null,null,null,null,null,null,null,null,"Es beneﬁciosa para el cumplimiento de mis funciones como director de IIEE"]
[null,null,null,"Marque con una “X” una o más opciones",null,null,null,null,null,null,null,null,null,null,"Es indiferente para el cumplimiento de mis funciones como director de IIEE"]
[null,null,null,null,null,null,null,null,null,null,null,null,null,null,"Es perjudicial para el cumplimiento de mis funciones como director de IIEE"]
[null,null,null,null,"Calendarización del año escolar"]
[null,null,null,null,"Proceso de matrícula",null,null,null,null,null,null,null,"110. ¿EN SU SERVICIO/NIVEL EDUCATIVO SE HA EXPERIMENTADO ALGUNA DE LAS SIGUIENTES"]
[null,null,null,null,"Gestión del riesgo, emergencias y desastres",null,null,null,null,null,null,null,null,"DIFICULTADES RELACIONADAS A QUE EL DIRECTOR (A) TENGA AULA A CARGO?"]
[null,null,null,null,"Entrega oportuna y uso de materiales y recursos educativos"]
[null,null,null,null,"Espacios de trabajo colegiado",null,null,null,null,null,null,null,null,"Seleccione “Si” o “No” según corresponda en cada acción"]
[null,null,null,null,"Monitoreo a la práctica pedagógica"]
[null,null,null,null,null,null,null,null,null,null,null,null,null,"NRO.","DIFICULTAD",null,null,null,null,null,null," SI - NO"]
[null,null,null,null,null,null,null,null,null,null,null,null,null,1,"Se diﬁculta realizar el monitoreo a la práctica pedagógica"]
[null,"106.  EL SERVICIO/NIVEL EDUCATIVO ¿CUENTA CON UN PLAN DE TUTORÍA, ORIENTACIÓN",null,null,null,null,null,null,null,null,null,null,null,2,"Se diﬁculta realizar gestiones con aliados para la mejora de la IE"]
[null,null,"EDUCATIVA Y CONVIVENCIA ESCOLAR (TOECE) EN EL MARCO DE LA ORGANIZACIÓN",null,null,null,null,null,null,null,null,null,null,3,"Se diﬁculta la gestión de la convivencia escolar"]
[null,null,"DEL TRABAJO CON LAS FAMILIAS?",null,null,null,null,null,null,null,null,null,null,4,"Se interrumpe las clases para atender funciones de dirección"]
[null,null,null,null,null,null,null,null,null,null,null,null,null,5,"Se debe dejar solos a los niños en el aula para atender tareas de la …"]
[null,null,"Sí",null,null,null," No  ","",null,null,null,null,null,6,"Se experimenta sobrecarga laboral, por lo que se debe laborar fuera …"]
[null,null,null,null,null,null,null,null,null,null,null,null,null,7,"Se experimenta problemas de salud"]
[null,null,null,null,null,null,null,null,null,null,null,null,null,8,"Se experimenta malestar psicosocial, estrés o agotamiento laboral"]
[null,"107. EL SERVICIO/NIVEL EDUCATIVO ¿CUENTA CON ACUERDOS DE CONVIVENCIA EN EL MARCO",null,null,null,null,null,null,null,null,null,null,null,9,"Se experimenta problemas personales, como pasar menos tiempo …"]
[null,null,"DEL REGLAMENTO INTERNO (RI) DEL CEBE?"]
[null,null,null,null,null,null,null,null,null,null,null,null,"111.  EN SU OPINIÓN, SI A UN DIRECTOR SE LE QUIERE ASIGNAR AULA A CARGO, ¿CUÁNTAS"]
[null,null,"Sí",null,null,null," No  ","",null,null,null,null,null,"SECCIONES COMO MÁXIMO DEBERÍA TENER LA IE PARA QUE SU DESEMPEÑO NO SE"]
[null,null,null,null,null,null,null,null,null,null,null,null,null,"VEA AFECTADO?"]
[null,null,null,null,null,null,null,null,null,null,null,null,null,"Marque con una “X” una opción"]
[null,"108. USTED SEÑOR(A) DIRECTOR(A), ¿TIENE AULA A CARGO U HORAS LECTIVAS PARA EL "]
[null,null,"PRESENTE AÑO?",null,null,null,null,null,null,null,null,null,null,null,null,"1 sección",null,null,null,null,"5 secciones"]
[null,null,null,null,null,null,null,null,null,null,null,null,null,null,null,"2 secciones",null,null,null,null,"6 secciones"]
[null,null,"Sí","",null,null," No  ",null,null,"Pase a la pregunta 111",null,null,null,null,null,"3 secciones",null,null,null,null,"7 o más secciones"]
[null,null,null,null,null,null,null,null,null,null,null,null,null,null,null,"4 secciones",null,null,null,null,"Ninguna"]
[]
[]
[null,"ACOMPAÑAMIENTO Y SOPORTE PEDAGÓGICO"]
[null,"112. DESDE  EL INICIO  DEL  AÑO LECTIVO HASTA LA FECHA DE LA APLICACIÓN DEL CENSO",null,null,null,null,null,null,null,null,null,null,"113. ¿CUÁLES DE LAS SIGUIENTES ACCIONES HA REALIZADO EL ESPECIALISTA"]
[null,null,"EDUCATIVO 2024, ESTE SERVICIO/NIVEL EDUCATIVO, ¿HA RECIBIDO COMUNICACIÓN",null,null,null,null,null,null,null,null,null,null,"PEDAGÓGICO AL MOMENTO DE BRINDAR LA ASISTENCIA TÉCNICA AL"]
[null,null,"O PARTICIPACIÓN PRESENCIAL O VIRTUAL DEL ESPECIALISTA PEDAGÓGICO DE LA",null,null,null,null,null,null,null,null,null,null,"SERVICIO/NIVEL EDUCATIVO?"]
[null,null,"UGEL, CON LA FINALIDAD DE BRINDAR ASISTENCIA TÉCNICA?"]
[null,null,null,null,null,null,null,null,null,null,null,null,null,"Marque con una “X” en “Si” o “No” según corresponda en cada acción"]
[null,null,"Sí","",null,"¿Cuántas veces?",null,null,null,null,null,null,null,"NRO.","ACCIONES",null,null,null,null,null,null," SI - NO"]
[null,null,null,null,null,null,"Presencial:",null,null,null,null,null,{"$f":"COUNTIF(V105:V124,\"NO\")","v":0},1,"Pregunto sobre las necesidades y demandas pedagógicas del"]
[null,null,null,null,null,null,"Virtual:",null,null,null,null,null,null,null,"servicio/nivel educativo"]
[null,null,null,null,null,null,null,null,null,null,null,null,null,2,"Observó alguna sesión o actividades de aprendizaje, ya sea de"]
[null,null," No  ",null,null,null,"Pase a la pregunta 114",null,null,null,null,null,null,null,"manera presencial o virtual/remota (por lo menos una vez)"]
[null,null,null,null,null,null,null,null,null,null,null,null,null,3,"Sostuvó un clima de confianza y proximidad durante sus acciones"]
[null,null,null,null,null,null,null,null,null,null,null,null,null,null,"de asistencia técnica con este servicio/ nivel educativo"]
[null,null,null,null,null,null,null,null,null,null,null,null,null,4,"Generó algún espacio para que el director(a) del servicio/nivel"]
[null,null,null,null,null,null,null,null,null,null,null,null,null,null,"educativo autoevalúe su práctica"]
[null,null,null,null,null,null,null,null,null,null,null,null,null,5,"Escuchó y respondió las dudas y consultas realizadas por usted"]
[null,null,null,null,null,null,null,null,null,null,null,null,null,6,"Las orientaciones brindadas atendieron las necesidades y"]
[null,null,null,null,null,null,null,null,null,null,null,null,null,null,"demandas señaladas"]
[null,null,null,null,null,null,null,null,null,null,null,null,null,7,"Brindó orientaciones para la mejora de las prácticas pedagógicas"]
[null,null,null,null,null,null,null,null,null,null,null,null,null,null,"y de gestión acorde al enfoque por competencias."]
[null,null,null,null,null,null,null,null,null,null,null,null,null,8,"Sugirió estrategias pedagógicas contextualizadas para mejorar las"]
[null,null,null,null,null,null,null,null,null,null,null,null,null,null,"prácticas docentes"]
[null,null,null,null,null,null,null,null,null,null,null,null,null,9,"Dio a conocer las fortalezas del servicio / nivel educativo"]
[null,null,null,null,null,null,null,null,null,null,null,null,null,10,"Se asumieron compromisos y/o acuerdos para la mejora"]
[null,null,null,null,null,null,null,null,null,null,null,null,null,11,"Recibió asistencia técnica respecto a las actividades del Programa Presupuestal 0106"]
[null,null,null,null,null,null,null,null,null,null,null,null,null,12,"Brindó orientaciones y/o acompañamientos periódicos para la implementación de la metodología CAP en la IE."]
[null,null,null,null,null,null,null,null,null,null,null,null,null,13,"Brindó orientaciones y/o acompañamientos periódicos para la Implementación de la metodología Círculo de Interaprendizaje de directivos (CID)"]
[null,null,null,null,null,null,null,null,null,null,null,null,null,null,null,null,null,null,null,null,null,{"$f":"COUNTIF(V105:V124,\"SI\")+COUNTIF(V105:V124,\"NO\")","v":0}]
[]
[]
[null,"114. DURANTE  EL  AÑO  2023 Y HASTA LA FECHA DE APLICACIÓN DEL CENSO EDUCATIVO 2024,",null,null,null,null,null,null,null,null,null,null,"       117. ¿DURANTE  LOS  ÚLTIMOS  DOS (02)  AÑOS,  EL  PERSONAL  DE  ESTE  SERVICIO/NIVEL"]
[null,null,"EL SERVICIO/NIVEL EDUCATIVO, ¿HA RECIBIDO ALGÚN TIPO DE ACOMPAÑAMIENTO",null,null,null,null,null,null,null,null,null,null,"EDUCATIVO  (YA  SEA  PERSONAL DIRECTIVO/JERARQUICO, PERSONAL DOCENTE, "]
[null,null,"DIRIGIDO AL DIRECTIVO?",null,null,null,null,null,null,null,null,null,null,"AUXILIARES O PERSONAL ADMINISTRATIVO), HA  RECIBIDO CAPACITACIÓN  EN TEMAS"]
[null,null,null,null,null,null,null,null,null,null,null,null,null,"DE EDUCACIÓN INCLUSIVA O ATENCIÓN A LA DIVERSIDAD DE PARTE DE ESPECIALISTAS"]
[null,null,"Sí",null,null,null," No  ",null,null,null,null,null,null,"DE DRE/GRE Y/O UGEL, O ALGUNA OTRA INSTITUCIÓN?"]
[]
[null,null,null,null,"¿Que Institución le brindó el acompañamiento?",null,null,null,null,null,null,null,null,"Sí",null,null,null,"No",""]
[null,null,null,null,"Marque con una “X” una o más opciones"]
[null,null,null,null,null,null,null,null,null,null,null,null,null,null,null,"¿Qué instancia o institución brindó la capacitación?"]
[null,null,null,null,"DRE/GRE",null,null,null,null,null,null,null,null,null,null,"Marque con una “X”, una o más opciones"]
[null,null,null,null,"UGEL",null,null,null,null,null,null,null,null,null,null,null,"","MINEDU"]
[null,null,null,null,"MINEDU",null,null,null,null,null,null,null,null,null,null,null,"","DRE/GRE"]
[null,null,null,null,"OTROS",null,null,null,null,null,null,null,null,null,null,null,"","UGEL"]
[null,null,null,{"$f":"CONCATENATE(D137,D138)","v":""},null,null,null,null,null,null,null,null,null,null,null,null,"","Organizaciones sin fines de lucro/ONG"]
[null,null,null,null,null,null,null,null,null,null,null,null,null,null,null,null,"","Entidad privada, como auspicio"]
[null,null,"“Sólo si marco DRE/GRE o UGEL”",null,null,null,null,null,null,null,null,null,null,null,null,null,"","Entidad privada, como convenio"]
[null,null,"¿Sobre qué temas recibió acompañamiento como director por parte de la DRE/GRE/UGEL?",null,null,null,null,null,null,null,null,null,null,null,null,null,"","Inversión propia"]
[null,null,"Marque con una “X”, una o más opciones",null,null,null,null,null,null,null,null,null,null,null,null,null,"","Otro"]
[]
[null,null,null,null,"Liderazgo directivo"]
[null,null,null,null,"Temas administrativos",null,null,null,null,null,null,null,"118. ¿QUÉ ESTRATEGIAS FORMATIVAS VIRTUALES PRIORIZARÍA SOBRE TEMAS DE"]
[null,null,null,null,"Temas estratégicos",null,null,null,null,null,null,null,null,"EDUCACIÓN INCLUSIVA O ATENCIÓN A LA DIVERSIDAD?"]
[null,null,null,null,"Temas pedagógicos",null,null,null,null,null,null,null,null,"Marque con una “X”, una o más opciones"]
[null,null,null,null,"Temas comunitarios"]
[null,null,null,null,"Círculo de Interaprendizaje de Directivos (CID)",null,null,null,null,null,null,null,null,null,"Curso virtual tutorado"]
[null,null,null,null,"Otros",null,null,null,null,null,null,null,null,null,"Curso virtual autoformativo"]
[null,null,null,"",null,null,null,null,null,null,null,null,null,null,"Grupo o círculo de interaprendizaje"]
[null,null,null,"",null,null,null,null,null,null,null,null,null,null,"Comunidades profesionales de apendizaje"]
[null,null,null,null,null,null,null,null,null,null,null,null,null,null,"Asesoría personalizada"]
[null,"115. DURANTE EL AÑO 2023, EL EQUIPO DIRECTIVO DE ESTE SERVICIO/NIVEL EDUCATIVO, ",null,null,null,null,null,null,null,null,null,null,null,null,"Pasantia"]
[null,null,"¿HA REALIZADO EL MONITOREO A LA PRÁCTICA PEDAGÓGICA DE LOS DOCENTES?",null,null,null,null,null,null,null,null,null,null,null,"Otros"]
[]
[]
[null,null," Sí",null,null,null," No  ",null,null,null,null,null,"119. EN EL PRESENTE AÑO EL DIRECTOR(A), COORDINADOR(A) O RESPONSABLE DE ESTE"]
[null,null,null,null,null,null,null,null,null,null,null,null,null,"SERVICIO/ NIVEL EDUCATIVO,  ¿BRINDA SOPORTE Y APOYO A LOS PROFESION. DOCENTES"]
[null,null,null,null,null,null,null,null,null,null,null,null,null,"Y NO DOCENTES EN TORNO A SU DESEMPEÑO EN EL MARCO DEL ACOMPAÑAMIENTO "]
[null,null,null,"¿Con qué frecuencia monitorea a cada docente durante el año escolar?",null,null,null,null,null,null,null,null,null,"PEDAGÓGICO  Y ESPACIOS DE TRABAJO COLEGIADO O TRANSDISCIPLINARIO?"]
[null,null,null,"Marque con una “X” una opción"]
[null,null,null,null,"Al menos 1 vez al año",null,null,null,null,null,null,null,null,"Sí","",null,null," No  ",null,null,"Pase a la pregunta 121"]
[null,null,null,null,"2 veces al año"]
[null,null,null,null,"3 veces al año"]
[null,null,null,null,"4 veces al año o más"]
[null,null,null,{"$f":"CONCATENATE(D168,D169)","v":""},null,null,null,null,null,null,null,null,"    120. ¿QUÉ TEMAS HAN SIDO ABORDADOS MAYORITARIAMENTE POR EL DIRECTOR DURANTE LAS"]
[null,null,null,null,null,null,null,null,null,null,null,null,null,"SESIONES DE SOPORTE Y APOYO A LOS PROFESIONALES DOCENTES Y NO DOCENTES EN EL"]
[null,null,null,"En caso haya señalado \"3 veces al año\" o “4 veces al año o más”, indique el motivo:",null,null,null,null,null,null,null,null,null,"MARCO DEL ACOMPAÑAMIENTO PEDAGÓGICO Y TRABAJO COLEGIADO?"]
[null,null,null,null,"El monitoreo es una actividad obligatoria.",null,null,null,null,null,null,null,null,"Marque con una “X”, una o más opciones"]
[null,null,null,null,"En clases me enseñaron que es necesario el monitoreo."]
[null,null,null,null,"El monitoreo permite dialogar sobre la práctica docente",null,null,null,null,null,null,null,null,"","Planiﬁcación curricular"]
[null,null,null,null,"y fortalece el logro de aprendizajes",null,null,null,null,null,null,null,null,"","Evaluación curricular"]
[null,null,null,null,null,null,null,null,null,null,null,null,null,"","Trabajo con familias"]
[null,null,null,null,null,null,null,null,null,null,null,null,null,"","Trabajo de los equipos interdisciplinarios"]
[null,"116. DURANTE EL AÑO 2023, EN PROMEDIO, ¿CUÁNTAS HORAS POR SEMANA Y REUNIONES POR",null,null,null,null,null,null,null,null,null,null,null,"","Desarrollo de la expresión artística"]
[null,null,"MES DE TRABAJO COLEGIADO O TRANSDISCIPLINARIO REALIZÓ CON EL PERSONAL DE",null,null,null,null,null,null,null,null,null,null,"","Desarrollo de la psicomotricidad"]
[null,null,"ESTE SERVICIO/NIVEL EDUCATIVO?",null,null,null,null,null,null,null,null,null,null,"","Otros temas",null,""]
[]
[null,null,"Promedio de horas de reunión por semana con docentes"]
[]
[null,null,"Promedio de reuniones por mes con no docentes"]
[]
[]
[]
[null,"121. EL SERVICIO/NIVEL EDUCATIVO, ¿DESARROLLA LAS SIGUIENTES ESTRATEGIAS",null,null,null,null,null,null,null,null,null,null,"123. DE LAS ACTIVIDADES QUE REALIZA CON FAMILIAS Y COMUNIDAD, ¿POR LO"]
[null,null,"DE ACOMPAÑAMIENTO?",null,null,null,null,null,null,null,null,null,null,"MENOS UNA DE ELLAS TIENE COMO EJE PRINCIPAL LA EDUCACIÓN SEXUAL "]
[null,null,null,null,null,null,null,null,null,null,null,null,null,"INTEGRAL (ESI)?"]
[null,null,null,null,null,null,null,null,"¿Cuántos?"]
[null,null,null,null,null,null,null,null,null,"de 1 a 4 por área",null,null,null,"Sí","",null,null,"No",""]
[null,null,null,"Visita en aula",null,null,null,null,null,"de 4 a 8 por área"]
[null,null,null,"Grupos de Interaprendizaje (GIA)",null,null,null,null,null,"Más de 8 por área",null,null,"124. ¿HA VISITADO EL PORTAL WEB PARA DIRECTIVOS EN LOS ÚLTIMOS TRES MESES"]
[null,null,null,"Talleres",null,null,null,null,null,null,null,null,null,"(https://directvos.minedu.gob.pe/)?"]
[null,null,null,"Otros",null,""]
[null,null,null,null,null,null,null,null,null,null,null,null,null,"Sí","",null,null,"No"]
[null,"122. EL SERVICIO/NIVEL EDUCATIVO, ¿REALIZA ACTIVIDADES CON FAMILIAS Y COMUNIDAD"]
[null,null,"QUE AYUDEN A LA PROMOCIÓN DE UN AMBIENTE INSTITUCIONAL FAVORABLE PARA",null,null,null,null,null,null,null,null,null,null,null,null,"¿La información encontrada en el portal web para direc vos "]
[null,null,"LA ATENCIÓN DE LA DIVERSIDAD?",null,null,null,null,null,null,null,null,null,null,null,null,"le resultó de utilidad?"]
[]
[null,null,"Sí",null,null,null," No  ","",null,"Pase a la pregunta 124",null,null,null,null,null,"Sí   ","",null,"No  "]
[]
[null,null,null,null,"¿Qué actividades realiza?"]
[null,null,null,null,null,null,null,null,null,null,null,null,"SOLO GESTIÓN PRIVADA"]
[null,null,null,null,"Talleres para familias (fortalecer competencias parentales)"]
[null,null,null,"","Visitas domiciliarias",null,null,null,null,null,null,null,"125. ¿CUÁNTO ES EL COSTO DE LA PENSIÓN DE ENSEÑANZA (EN MONEDA NACIONAL)?"]
[null,null,null,null,"Entrevistas personales (acompañamiento en el proceso de aprendizaje)"]
[null,null,null,null,"Trabajo colaborativo en beneficio del aula",null,null,null,null,null,null,null,null,null,"Única",null,"Pensión"]
[null,null,null,null,"Otras"]
[]
[null,null,null,null,null,null,null,null,null,null,null,null,null,null,null,null,"Escala mínima"]
[null,null,null,null,null,null,null,null,null,null,null,null,null,null,"Varias"]
[null,null,null,null,null,null,null,null,null,null,null,null,null,null,null,null,"Escala máxima"]

{"sheet":"C200","index":2,"n_rows":104,"n_cols":18,"rows_kept":104,"cut":false,"hidden":false,"merged":[[100,10,104,13],[6,2,6,17],[30,8,30,13],[28,3,28,13],[48,3,48,13],[50,2,52,5],[50,6,51,7],[50,8,50,13],[51,8,51,9],[51,10,51,11],[51,12,51,13],[101,6,101,7],[102,6,102,7],[8,3,8,16],[11,16,11,17],[68,3,68,13],[97,3,97,13],[10,2,12,5],[90,2,91,4],[70,2,72,5],[70,6,71,7],[71,12,71,13],[70,8,70,13],[11,12,11,13],[71,8,71,9],[71,10,71,11],[90,5,91,5],[90,6,90,8],[92,2,92,4],[103,6,103,7],[99,6,99,7],[100,6,100,7],[1,5,1,14],[30,2,32,5],[31,8,31,9],[30,6,31,7],[31,12,31,13],[31,10,31,11],[11,14,11,15],[11,10,11,11],[10,6,11,7],[11,8,11,9],[10,8,10,17],[2,5,2,14],[88,3,88,13]]}
[]
[null,null,null,null,null,"CENSO EDUCATIVO 2024"]
[null,null,null,null,null,"MATRÍCULA, DOCENTES Y RECURSOS"]
[]
[]
[]
[null,null,"200. MATRÍCULA Y SECCIONES"]
[]
[null,null,201,"MATRICULA EN CEBE INICIAL, POR EDAD ATENDIDA Y SEXO, SEGÚN TIPO DE DISCAPACIDAD U OTRA CONDICIÓN\nEDAD CUMPLIDA AL 31 DE MARZO DE 2024"]
[]
[null,null,"TIPO DE DISCAPACIDAD U OTRA CONDICIÓN",null,null,null,"TOTAL",null,"EDAD ATENDIDA Y SEXO"]
[null,null,null,null,null,null,null,null,3,null,4,null,5,null,6,null,"7 y más"]
[null,null,null,null,null,null,"H","M","H","M","H","M","H","M","H","M","H","M"]
["00",null,"TOTAL",null,null,null,{"$f":"SUM(G15:G26)","v":0},0,0,0,0,0,0,0,0,0,0,0]
["01",null,"DISCAPACIDAD INTELECTUAL - Severa/Profunda",null,null,null,{"$f":"I15+K15+M15+O15+Q15","v":0},{"$f":"J15+L15+N15+P15+R15","v":0}]
["02",null,"DISCAPACIDAD AUDITIVA - Hipoacusia",null,null,null,{"$f":"I16+K16+M16+O16+Q16","v":0},{"$f":"J16+L16+N16+P16+R16","v":0}]
["03",null,"DISCAPACIDAD AUDITIVA - Sordera",null,null,null,0,0]
["04",null,"DISCAPACIDAD VISUAL - Baja Visión",null,null,null,0,0]
["05",null,"DISCAPACIDAD VISUAL - Ceguera",null,null,null,0,0]
["06",null,"DISCAPACIDAD FÍSICA O MOTORA",null,null,null,0,0]
["07",null,"TEA - Requiere de apoyo (Nivel 1)",null,null,null,0,0]
["08",null,"TEA - Requiere de apoyo notable (Nivel 2)",null,null,null,0,0]
["09",null,"TEA - Requiere de apoyo muy notable (Nivel 3)",null,null,null,{"$f":"I23+K23+M23+O23+Q23","v":0},{"$f":"J23+L23+N23+P23+R23","v":0}]
["10",null,"SORDOCEGUERA",null,null,null,0,0]
["11",null,"MULTIDISCAPACIDAD (MDE)",null,null,null,0,0]
["12",null,"OTRA (OTRA DISCAPACIDAD U OTRA CONDICIÓN)",null,null,null,0,0]
[]
[]
[null,null,202,"MATRICULA EN CEBE INICIAL, POR GRADO ATENDIDO Y SEXO, SEGÚN TIPO DE DISCAPACIDAD U OTRA CONDICIÓN"]
[]
[null,null,"TIPO DE DISCAPACIDAD U OTRA CONDICIÓN",null,null,null,"TOTAL",null,"EDAD ATENDIDA Y SEXO"]
[null,null,null,null,null,null,null,null,"3 Años",null,"4 Años",null,"5 Años"]
[null,null,null,null,null,null,"H","M","H","M","H","M","H","M"]
["00",null,"TOTAL",null,null,null,{"$f":"SUM(G35:G46)","v":0},0,0,0,0,0,0,0]
["01",null,"DISCAPACIDAD INTELECTUAL - Severa/Profunda",null,null,null,{"$f":"I35+K35+M35","v":0},0]
["02",null,"DISCAPACIDAD AUDITIVA - Hipoacusia",null,null,null,0,0]
["03",null,"DISCAPACIDAD AUDITIVA - Sordera",null,null,null,0,0]
["04",null,"DISCAPACIDAD VISUAL - Baja Visión",null,null,null,{"$f":"I38+K38+M38","v":0},{"$f":"J38+L38+N38","v":0}]
["05",null,"DISCAPACIDAD VISUAL - Ceguera",null,null,null,0,0]
["06",null,"DISCAPACIDAD FÍSICA O MOTORA",null,null,null,0,0]
["07",null,"TEA - Requiere de apoyo (Nivel 1)",null,null,null,0,0]
["08",null,"TEA - Requiere de apoyo notable (Nivel 2)",null,null,null,0,0]
["09",null,"TEA - Requiere de apoyo muy notable (Nivel 3)",null,null,null,0,0]
["10",null,"SORDOCEGUERA",null,null,null,0,0]
["11",null,"MULTIDISCAPACIDAD (MDE)",null,null,null,0,0]
["12",null,"OTRA (OTRA DISCAPACIDAD U OTRA CONDICIÓN)",null,null,null,{"$f":"I46+K46+M46","v":0},{"$f":"J46+L46+N46","v":0}]
[null,null,"Nota: Los totales de esta tabla deben ser iguales a los de la tabla 201."]
[]
[null,null,203,"MATRÍCULA EN CEBE INICIAL POR TIPO DE DOCUMENTO DE EVIDENCIA Y SEXO, SEGÚN TIPO DE DISCAPACIDAD  U OTRA CONDICIÓN"]
[]
[null,null,"TIPO DE DISCAPACIDAD U OTRA CONDICIÓN",null,null,null,"TOTAL",null,"DOCUMENTO DE EVIDENCIA"]
[null,null,null,null,null,null,null,null,"Certificado de Discapacidad",null,"Informe o Certificado Médico de profesional o institución",null,"Declaración Jurada Padre/Madre/ Tutor"]
[null,null,null,null,null,null,"H","M","H","M","H","M","H","M"]
["00",null,"TOTAL",null,null,null,{"$f":"SUM(G55:G66)","v":0},0,0,0,0,0,0,0]
["01",null,"DISCAPACIDAD INTELECTUAL - Severa/Profunda",null,null,null,{"$f":"I55+K55+M55","v":0},0]
["02",null,"DISCAPACIDAD AUDITIVA - Hipoacusia",null,null,null,0,0]
["03",null,"DISCAPACIDAD AUDITIVA - Sordera",null,null,null,0,0]
["04",null,"DISCAPACIDAD VISUAL - Baja Visión",null,null,null,{"$f":"I58+K58+M58","v":0},{"$f":"J58+L58+N58","v":0}]
["05",null,"DISCAPACIDAD VISUAL - Ceguera",null,null,null,0,0]
["06",null,"DISCAPACIDAD FÍSICA O MOTORA",null,null,null,0,0]
["07",null,"TEA - Requiere de apoyo (Nivel 1)",null,null,null,0,0]
["08",null,"TEA - Requiere de apoyo notable (Nivel 2)",null,null,null,0,0]
["09",null,"TEA - Requiere de apoyo muy notable (Nivel 3)",null,null,null,0,0]
["10",null,"SORDOCEGUERA",null,null,null,0,0]
["11",null,"MULTIDISCAPACIDAD (MDE)",null,null,null,0,0]
["12",null,"OTRA (OTRA DISCAPACIDAD U OTRA CONDICIÓN)",null,null,null,{"$f":"I66+K66+M66","v":0},{"$f":"J66+L66+N66","v":0}]
[null,null,"Nota: Los totales de esta tabla deben ser iguales a los de la tabla 201."]
[]
[null,null,204,"MATRÍCULA EN CEBE INICIAL QUE SE ENCUENTREN EN SITUACIÓN DE HOSPITALIZACIÓN AL MOMENTO DEL REPORTE DEL CENSO EDUCATIVO 2023, SEGÚN TIPO DE DISCAPACIDAD U OTRA CONDICIÓN"]
[]
[null,null,"TIPO DE DISCAPACIDAD U OTRA CONDICIÓN",null,null,null,"TOTAL",null,"Estudiantes en situación de hospitalización"]
[null,null,null,null,null,null,null,null,"Menos de 15 días",null,"De 15 a 30 días",null,"Más de 30 días"]
[null,null,null,null,null,null,"H","M","H","M","H","M","H","M"]
["00",null,"TOTAL",null,null,null,{"$f":"SUM(G75:G86)","v":0},0,0,0,0,0,0,0]
["01",null,"DISCAPACIDAD INTELECTUAL - Severa/Profunda",null,null,null,{"$f":"I75+K75+M75","v":0},{"$f":"J75+L75+N75","v":0}]
["02",null,"DISCAPACIDAD AUDITIVA - Hipoacusia",null,null,null,{"$f":"I76+K76+M76","v":0},{"$f":"J76+L76+N76","v":0}]
["03",null,"DISCAPACIDAD AUDITIVA - Sordera",null,null,null,{"$f":"I77+K77+M77","v":0},0]
["04",null,"DISCAPACIDAD VISUAL - Baja Visión",null,null,null,0,0]
["05",null,"DISCAPACIDAD VISUAL - Ceguera",null,null,null,0,0]
["06",null,"DISCAPACIDAD FÍSICA O MOTORA",null,null,null,0,0]
["07",null,"TEA - Requiere de apoyo (Nivel 1)",null,null,null,0,0]
["08",null,"TEA - Requiere de apoyo notable (Nivel 2)",null,null,null,{"$f":"I82+K82+M82","v":0},{"$f":"J82+L82+N82","v":0}]
["09",null,"TEA - Requiere de apoyo muy notable (Nivel 3)",null,null,null,0,0]
["10",null,"SORDOCEGUERA",null,null,null,0,0]
["11",null,"MULTIDISCAPACIDAD (MDE)",null,null,null,0,0]
["12",null,"OTRA (OTRA DISCAPACIDAD U OTRA CONDICIÓN)",null,null,null,0,0]
[]
[]
[null,null,205,"NÚMERO TOTAL DE SECCIONES EN CEBE INICIAL, POR AÑO ATENDIDO, SEGÚN TURNO"]
[]
[null,null,"TURNO",null,null,"TOTAL\nSECCIONES","EDAD ATENDIDA"]
[null,null,null,null,null,null,3,4,"5 y más"]
["00",null,"TOTAL",null,null,{"$f":"SUM(G93:I93)","v":0},{"$f":"SUM(G94:G95)","v":0},{"$f":"SUM(H94:H95)","v":0},{"$f":"SUM(I94:I95)","v":0}]
["01",null,"Mañana",null,null,{"$f":"SUM(G94:I94)","v":0}]
["02",null,"Tarde",null,null,{"$f":"SUM(G95:I95)","v":0}]
[null,null,null,null,null,null,{"$f":"I14+J14","v":0},{"$f":"K14+L14","v":0},{"$f":"SUM(M14:R14)","v":0}]
[]
[null,null,206,"¿QUÉ EDADES ATENDIDAS CUENTAN CON BIBLIOTECA DE AULA?"]
[null,null,"Marque con un aspa “X” la edad correspondiente y anote el número total de ejemplares según corresponda"]
[{"$f":"COUNTIF(D101:D104,\"X\")","v":0},null,null,null,"Edad atendida","","N° Total de\nEjemplares"]
["01",null,null,null,"3 años",null,null,null,null,null,"Nota:\nLas bibliotecas de aula están constituidas por libros, láminas y otros materiales didácticos similares, puestos al alcance de los estudiantes del aula."]
["02",null,null,null,"4 años"]
["03",null,null,null,"5 años"]
["04",null,null,null,"Ninguna edad",null,{"$f":"SUM(G101:H103)","v":0}]

{"sheet":"C300","index":3,"n_rows":184,"n_cols":52,"rows_kept":184,"cut":false,"hidden":false,"merged":[[15,24,17,24],[14,39,14,42],[14,46,14,47],[7,10,7,23],[15,11,17,11],[15,12,17,12],[15,13,17,13],[15,29,17,29],[15,21,17,21],[12,26,12,27],[15,16,17,16],[15,17,17,17],[15,27,17,27],[15,19,17,19],[15,46,15,47],[14,43,14,45],[15,43,15,45],[16,43,17,43],[15,48,16,48],[15,49,17,49],[16,46,16,47],[1,12,1,21],[2,12,2,21],[15,34,17,34],[15,26,17,26],[14,14,14,15],[15,14,15,15],[15,28,17,28],[15,25,17,25],[6,10,6,23],[15,23,17,23],[15,10,17,10],[15,18,17,18],[15,20,17,20],[15,31,17,31],[15,22,17,22],[16,44,16,45],[15,30,17,30],[15,39,15,42],[16,39,17,39],[16,40,17,40],[16,41,17,41],[16,42,17,42],[15,33,17,33],[15,32,17,32],[15,35,17,35],[15,37,17,37],[15,38,17,38],[15,36,17,36]]}
[]
[null,null,null,null,null,null,null,null,null,null,null,null,"CENSO EDUCATIVO 2024"]
[null,null,null,null,null,null,null,null,null,null,null,null,"MATRÍCULA, DOCENTES Y RECURSOS"]
[]
["PERSONAL",{"$f":"N10+U10+W10","v":0}]
[]
["DOCENTES",{"$f":"COUNTIF(Q19:Q118,\"01: Docente\")","v":0},null,null,null,null,null,null,null,null,"300. PERSONAL DOCENTE, AUXILIAR DE EDUCACIÓN Y ADMINISTRATIVO"]
["AUXILIARES",{"$f":"COUNTIF(Q19:Q118,\"03: Aux. de Educación\")","v":0},null,null,null,null,null,null,null,null,"En esta tabla, REGISTRE a todo el personal docente, auxiliares de educación y personal administrativo que se encuentre laborando en el servicio/nivel educativo durante el periodo\nde reporte del censo educativo. (EXCLUYA al personal que se encuentre haciendo uso de licencia y a los que han sido destacados a otra IE/DRE/UGEL)"]
["ADMINISTRATIVOS",{"$f":"COUNTIF(Q19:Q118,\"02: Administrativo\")","v":0}]
["NO DOCENTES",{"$f":"COUNTIF(Q19:Q118,\"04: No Docente\")","v":0},null,null,null,null,null,null,null,null,null,null,"TOTAL PROFESIONALES :  ",{"$f":"P10+S10","v":0},"DOCENTES :   ",null,null,"NO DOCENTES :   ",null,"AUX. DE EDUCACIÓN :  ",null,"ADMINISTRATIVOS :  "]
["DOCENTES CON SECCIÓN",{"$f":"COUNTIF(AM19:AM118,\"SI\")","v":0}]
[null,{"$f":"B7+B8+B9","v":0},null,null,null,null,null,null,null,null,"A continuación registre a todo el personal que desempeñe funciones docentes en el Servicio/Nivel educativo: Directivos con o sin aula a cargo, docentes de aula, jefes o jerárquicos, especiales (ed. física, computación, etc.)"]
[null,null,null,null,null,null,null,null,null,null,"Documentos fuente: Legajo de personal y CAP de la institución educativa."]
[null,null,3,4,5,6,7,8,9]
[null,null,null,null,null,null,null,null,null,null,null,301.10000000000002,301.2,301.3,302,null,303,304,305,306,307,308,309,310,311,312,313,314,315,316,317,318,319,320,321,322,323,324,325,326,null,null,null,327,null,null,328,null,329,330]
["GESTION",{"$f":"IF(OR('C100'!I37=\"X\",'C100'!N37=\"X\"),1,IF('C100'!S37=\"X\",3,\"\"))","v":""},null,null,null,null,null,null,null,null,"Nº","Apellido Paterno","Apellido Materno","Nombres","Documento de Identidad",null,"Tipo de\nPersonal","Edad","Sexo","Lengua\nmaterna","¿Domina una\nlengua\noriginaria?\nSí - No","Lengua originaria\nque domina","Fuente de\nfinanciamiento","Condición Laboral","Modalidad de Contrato","Máximo nivel\neducativo alcanzado","Especialidad Pedagógica\nque ha estudiado","¿En qué tipo de\ninstitución obtuvo\nsu formación pedagógica?","Segunda especialidad","Estudios de Postgrado en Pedagogía","Tiempo de Servicio\n(en años)","Años de Experiencia Laboral","Años de\nexperiencia\nlaboral en\neste servicio/nivel\neducativo","Escala\nMagisterial","Función o cargo","Situación en cargo\ndirectivo","Licencia \no\nDestaque","Jornada Laboral según\nNombramiento\no Contrato","¿Tiene secciones a cargo?","Conocimiento de Ingles",null,null,null,"Certificación de Inglés",null,null,"¿Dónde presta el servicio?",null,"¿Presenta alguna discapacidad?","Solo si respondió Sí en la pregunta\n329 ¿Cúal es el tipo de discapacidad?"]
[null,null,"Exp1","Exp2","Exp3","Exp4","Exp5","Exp6",null,null,null,null,null,null,302.10000000000002,302.2,null,null,null,null,null,null,null,null,null,null,null,null,null,null,null,null,null,null,null,null,null,null,null,"No Sabe","Habla","Lee","Escribe","No Tiene","Si Tiene",null,"Marque una “X” donde corresponda"]
["302.1 Tipo de documento de Identidad","314. Tipo de inst. donde estudio","Corr","Escala","Gest","Fun cion","Duplex","Fmt",null,null,null,null,null,null,"Tipo","Número",null,null,null,null,null,null,null,null,null,null,null,null,null,null,null,null,null,null,null,null,null,null,null,null,null,null,null,null,"Nacional","Interna cional","CEBE","SAANEE","Sí / No"]
["01: DNI.","01: IESP (Público)",1,{"$f":"IF(AND(LEFT(Q19,2)=\"01\",LEFT(W19,2)=\"01\",LEFT(X19,2)=\"01\",E19=1),1,0)","v":0},{"$f":"$B$16","v":""},{"$f":"IF(Q19<>\"\",VALUE(LEFT(Q19,2)),0)","v":0},{"$f":"IF(P19<>\"\",COUNTIF($Q$20:$Q$319,P19),0)","v":0},{"$f":"IF(K19<>\"\",1,0)","v":0},null,null,{"$f":"IF(C19<=$B$5,C19,\"\")","v":""},"","","","","","","","","","","","","","","","","","","","","","","","","","","","","","","","","","","","","","","",null,{"$f":"IF($Z19<>\"\",IF(OR(LEFT($Z19,2)=\"01\",LEFT($Z19,2)=\"02\",LEFT($Z19,2)=\"04\",LEFT($Z19,2)=\"05\"),1,2),\"\")","v":""}]
["02: Carnet Ext.","02: IESP (Privado)",2,{"$f":"IF(AND(LEFT(Q20,2)=\"01\",LEFT(W20,2)=\"01\",LEFT(X20,2)=\"01\",E20=1),1,0)","v":0},{"$f":"$B$16","v":""},{"$f":"IF(Q20<>\"\",VALUE(LEFT(Q20,2)),0)","v":0},{"$f":"IF(P20<>\"\",COUNTIF($Q$20:$Q$319,P20),0)","v":0},0,null,null,{"$f":"IF(C20<=$B$5,C20,\"\")","v":""},"","","","","","","","","","","","","","","","","","","","","","","","","","","","","","","","","","","","","","","",null,{"$f":"IF($Z20<>\"\",IF(OR(LEFT($Z20,2)=\"01\",LEFT($Z20,2)=\"02\",LEFT($Z20,2)=\"04\",LEFT($Z20,2)=\"05\"),1,2),\"\")","v":""}]
["03: Pasaporte","03: Universidad Privada",3,0,"",0,0,0,null,null,{"$f":"IF(C21<=$B$5,C21,\"\")","v":""},"","","","","","","","","","","","","","","","","","","","","","","","","","","","","","","","","","","","","","","",null,""]
[null,"04: Universidad Pública",4,0,"",0,0,0,null,null,"","","","","","","","","","","","","","","","","","","","","","","","","","","","","","","","","","","","","","","","",null,""]
["303. Tipo de Personal",null,5,0,"",0,0,0,null,null,"","","","","","","","","","","","","","","","","","","","","","","","","","","","","","","","","","","","","","","","",null,""]
["01: Docente","315. Segunda Especialidad",6,0,"",0,0,0,null,null,"","","","","","","","","","","","","","","","","","","","","","","","","","","","","","","","","","","","","","","","",null,""]
["02: Administrativo","Utilice las especialidades de la tabla de códigos 313.",7,0,"",0,0,0,null,null,"","","","","","","","","","","","","","","","","","","","","","","","","","","","","","","","","","","","","","","","",null,""]
["03: Aux. de Educación",null,8,0,"",0,0,0,null,null,"","","","","","","","","","","","","","","","","","","","","","","","","","","","","","","","","","","","","","","","",null,""]
["04: No Docente","316. Estudios de Postgrado en Pedagogía",9,0,"",0,0,0,null,null,"","","","","","","","","","","","","","","","","","","","","","","","","","","","","","","","","","","","","","","","",null,""]
[null,"Estudios de Maestría y doctorado",10,0,"",0,0,0,null,null,"","","","","","","","","","","","","","","","","","","","","","","","","","","","","","","","","","","","","","","","",null,""]
["305. Sexo","01: Maestria concluida con grado",11,0,"",0,0,0,null,null,"","","","","","","","","","","","","","","","","","","","","","","","","","","","","","","","","","","","","","","","",null,""]
["Hombre","02: Maestria concluida sin grado",12,0,"",0,0,0,null,null,"","","","","","","","","","","","","","","","","","","","","","","","","","","","","","","","","","","","","","","","",null,""]
["Mujer","03: Maestria en proceso",13,0,"",0,0,0,null,null,"","","","","","","","","","","","","","","","","","","","","","","","","","","","","","","","","","","","","","","","","",""]
[null,"04: Doctorado concluido con grado",14,0,"",0,0,0,null,null,"","","","","","","","","","","","","","","","","","","","","","","","","","","","","","","","","","","","","","","","","",""]
["306. Lengua Materna","05: Doctorado concluido sin grado",15,0,"",0,0,0,null,null,"","","","","","","","","","","","","","","","","","","","","","","","","","","","","","","","","","","","","","","","","",""]
["0100: Castellano","06: Doctorado en proceso",16,0,"",0,0,0,null,null,"","","","","","","","","","","","","","","","","","","","","","","","","","","","","","","","","","","","","","","","","",""]
["0200: Achuar","07: Sin Postgrado",17,0,"",0,0,0,null,null,"","","","","","","","","","","","","","","","","","","","","","","","","","","","","","","","","","","","","","","","","",""]
["0300: Aimara",null,18,0,"",0,0,0,null,null,"","","","","","","","","","","","","","","","","","","","","","","","","","","","","","","","","","","","","","","","","",""]
["0400: Amahuaca",null,19,0,"",0,0,0,null,null,"","","","","","","","","","","","","","","","","","","","","","","","","","","","","","","","","","","","","","","","","",""]
["0500: Arabela","317. Tiempo de Servicio",20,0,"",0,0,0,null,null,"","","","","","","","","","","","","","","","","","","","","","","","","","","","","","","","","","","","","","","","","",""]
["0600: Asháninka","Solo personal Nombrado.",21,0,"",0,0,0,null,null,"","","","","","","","","","","","","","","","","","","","","","","","","","","","","","","","","","","","","","","","","",""]
["0610: Asheninka","Tiempo contado expresado en años desde su fecha de Nombramiento",22,0,"",0,0,0,null,null,"","","","","","","","","","","","","","","","","","","","","","","","","","","","","","","","","","","","","","","","","",""]
["0700: Awajún",null,23,0,"",0,0,0,null,null,"","","","","","","","","","","","","","","","","","","","","","","","","","","","","","","","","","","","","","","","","",""]
["0800: Bora","318. Años de Experiencia Laboral",24,0,"",0,0,0,null,null,"","","","","","","","","","","","","","","","","","","","","","","","","","","","","","","","","","","","","","","","","",""]
["0900: Kapanawa","Registre el total de años que tiene como experiencia",25,0,"",0,0,0,null,null,"","","","","","","","","","","","","","","","","","","","","","","","","","","","","","","","","","","","","","","","","",""]
["1000: Cashinahua","en el Tipo de Personal que se está registrando (Tabla 301.)",26,0,"",0,0,0,null,null,"","","","","","","","","","","","","","","","","","","","","","","","","","","","","","","","","","","","","","","","","",""]
["1100: Kawki",null,27,0,"",0,0,0,null,null,"","","","","","","","","","","","","","","","","","","","","","","","","","","","","","","","","","","","","","","","","",""]
["1200: Chamikuro","319. Años de experiencia laboral en este servicio/ nivel educativo",28,0,"",0,0,0,null,null,"","","","","","","","","","","","","","","","","","","","","","","","","","","","","","","","","","","","","","","","","",""]
["1300: Ese eja","Anote el N° de años de experiencia prestando servicios",29,0,"",0,0,0,null,null,"","","","","","","","","","","","","","","","","","","","","","","","","","","","","","","","","","","","","","","","","",""]
["1400: Harakbut","en este servicio/nivel educativo por el tipo de personal",30,0,"",0,0,0,null,null,"","","","","","","","","","","","","","","","","","","","","","","","","","","","","","","","","","","","","","","","","",""]
["1500: Iñapari","que se está registrando (Tabla 301.)",31,0,"",0,0,0,null,null,"","","","","","","","","","","","","","","","","","","","","","","","","","","","","","","","","","","","","","","","","",""]
["1600: Ikuitu",null,32,0,"",0,0,0,null,null,"","","","","","","","","","","","","","","","","","","","","","","","","","","","","","","","","","","","","","","","","",""]
["1700: Iskonawa","320. Escala Magisterial",33,0,"",0,0,0,null,null,"","","","","","","","","","","","","","","","","","","","","","","","","","","","","","","","","","","","","","","","","",""]
["1800: Jaqaru","Complete los datos de Escala Magisterial, según corresponda",34,0,"",0,0,0,null,null,"","","","","","","","","","","","","","","","","","","","","","","","","","","","","","","","","","","","","","","","","",""]
["1900: Kakataibo","01: Primera",35,0,"",0,0,0,null,null,"","","","","","","","","","","","","","","","","","","","","","","","","","","","","","","","","","","","","","","","","",""]
["2000: Kakinte (caquinte)","02: Segunda",36,0,"",0,0,0,null,null,"","","","","","","","","","","","","","","","","","","","","","","","","","","","","","","","","","","","","","","","","",""]
["2110: Kandozi (Chapra)","03: Tercera",37,0,"",0,0,0,null,null,"","","","","","","","","","","","","","","","","","","","","","","","","","","","","","","","","","","","","","","","","",""]
["2120: Kandozi (Kandozi)","04: Cuarta",38,0,"",0,0,0,null,null,"","","","","","","","","","","","","","","","","","","","","","","","","","","","","","","","","","","","","","","","","",""]
["2200: Kukama-kukamiria","05: Quinta",39,0,"",0,0,0,null,null,"","","","","","","","","","","","","","","","","","","","","","","","","","","","","","","","","","","","","","","","","",""]
["2300: Madija (culina)","06: Sexta",40,0,"",0,0,0,null,null,"","","","","","","","","","","","","","","","","","","","","","","","","","","","","","","","","","","","","","","","","",""]
["2400: Maijiki","07: Séptima",41,0,"",0,0,0,null,null,"","","","","","","","","","","","","","","","","","","","","","","","","","","","","","","","","","","","","","","","","",""]
["2500: Matsés","08: Octava",42,0,"",0,0,0,null,null,"","","","","","","","","","","","","","","","","","","","","","","","","","","","","","","","","","","","","","","","","",""]
["2600: Matsigenka","09: Sin Escala",43,0,"",0,0,0,null,null,"","","","","","","","","","","","","","","","","","","","","","","","","","","","","","","","","","","","","","","","","",""]
["2700: Munichi",null,44,0,"",0,0,0,null,null,"","","","","","","","","","","","","","","","","","","","","","","","","","","","","","","","","","","","","","","","","",""]
["2800: Murui-muinani","321. Función o Cargo",45,0,"",0,0,0,null,null,"","","","","","","","","","","","","","","","","","","","","","","","","","","","","","","","","","","","","","","","","",""]
["2900: Matsigenka-montetokunirira","(Desempeñado a la fecha de reporte)",46,0,"",0,0,0,null,null,"","","","","","","","","","","","","","","","","","","","","","","","","","","","","","","","","","","","","","","","","",""]
["3000: Nomatsigenga","Docentes",47,0,"",0,0,0,null,null,"","","","","","","","","","","","","","","","","","","","","","","","","","","","","","","","","","","","","","","","","",""]
["3100: Ocaina","01: (102)-Director",48,0,"",0,0,0,null,null,"","","","","","","","","","","","","","","","","","","","","","","","","","","","","","","","","","","","","","","","","",""]
["3200: Omagua","02: (109)-Coordinador del SAANEE",49,0,"",0,0,0,null,null,"","","","","","","","","","","","","","","","","","","","","","","","","","","","","","","","","","","","","","","","","",""]
["3310: Quechua amazónico (Kichwa)","03: (141)-Docente SAANEE",50,0,"",0,0,0,null,null,"","","","","","","","","","","","","","","","","","","","","","","","","","","","","","","","","","","","","","","","","",""]
["3321: Quechua central (Ancash)","04: (111)-Docente de Aula",51,0,"",0,0,0,null,null,"","","","","","","","","","","","","","","","","","","","","","","","","","","","","","","","","","","","","","","","","",""]
["3322: Quechua central (Huánuco)","05: (139)-Otro Docente o Jerárquico",52,0,"",0,0,0,null,null,"","","","","","","","","","","","","","","","","","","","","","","","","","","","","","","","","","","","","","","","","",""]
["3323: Quechua central (Wanka)",null,53,0,"",0,0,0,null,null,"","","","","","","","","","","","","","","","","","","","","","","","","","","","","","","","","","","","","","","","","",""]
["3324: Quechua central (Pasco)","No Docentes",54,0,"",0,0,0,null,null,"","","","","","","","","","","","","","","","","","","","","","","","","","","","","","","","","","","","","","","","","",""]
["3331: Quechua norteño (Cajamarca)","06: (532)-Terapista Físico",55,0,"",0,0,0,null,null,"","","","","","","","","","","","","","","","","","","","","","","","","","","","","","","","","","","","","","","","","",""]
["3332: Quechua norteño (Inkawasi Kañaris)","07: (540)-Terapista OcupacionaL",56,0,"",0,0,0,null,null,"","","","","","","","","","","","","","","","","","","","","","","","","","","","","","","","","","","","","","","","","",""]
["3341: Quechua sureño (Chanka)","08: (533)-Terapista del Lenguaje",57,0,"",0,0,0,null,null,"","","","","","","","","","","","","","","","","","","","","","","","","","","","","","","","","","","","","","","","","",""]
["3342: Quechua sureño (Collao)","09: (503)-Personal de Salud",58,0,"",0,0,0,null,null,"","","","","","","","","","","","","","","","","","","","","","","","","","","","","","","","","","","","","","","","","",""]
["3400: Resígaro","10: (501)-Psicólogo",59,0,"",0,0,0,null,null,"","","","","","","","","","","","","","","","","","","","","","","","","","","","","","","","","","","","","","","","","",""]
["3500: Secoya","11: (502)-Trabajo Social / Servicio Social",60,0,"",0,0,0,null,null,"","","","","","","","","","","","","","","","","","","","","","","","","","","","","","","","","","","","","","","","","",""]
["3600: Sharanahua","12: (537)-Guía intérprete de sordoceguera",61,0,"",0,0,0,null,null,"","","","","","","","","","","","","","","","","","","","","","","","","","","","","","","","","","","","","","","","","",""]
["3700: Shawi","13: (538)-Intérprete de Lengua de Señas Peruana",62,0,"",0,0,0,null,null,"","","","","","","","","","","","","","","","","","","","","","","","","","","","","","","","","","","","","","","","","",""]
["3800: Shipibo-Konibo","14: (539)-Modelo Lingüístico",63,0,"",0,0,0,null,null,"","","","","","","","","","","","","","","","","","","","","","","","","","","","","","","","","","","","","","","","","",""]
["3900: Shiwilu",null,64,0,"",0,0,0,null,null,"","","","","","","","","","","","","","","","","","","","","","","","","","","","","","","","","","","","","","","","","",""]
["4000: Taushiro",null,65,0,"",0,0,{"$f":"IF(K83<>\"\",1,0)","v":0},null,null,"","","","","","","","","","","","","","","","","","","","","","","","","","","","","","","","","","","","","","","","","",""]
["4100: Ticuna",null,66,{"$f":"IF(AND(LEFT(Q84,2)=\"01\",LEFT(W84,2)=\"01\",LEFT(X84,2)=\"01\",E84=1),1,0)","v":0},{"$f":"$B$16","v":""},{"$f":"IF(Q84<>\"\",VALUE(LEFT(Q84,2)),0)","v":0},{"$f":"IF(P84<>\"\",COUNTIF($Q$20:$Q$319,P84),0)","v":0},0,null,null,"","","","","","","","","","","","","","","","","","","","","","","","","","","","","","","","","","","","","","","","","",{"$f":"IF($Z84<>\"\",IF(OR(LEFT($Z84,2)=\"01\",LEFT($Z84,2)=\"02\",LEFT($Z84,2)=\"04\",LEFT($Z84,2)=\"05\"),1,2),\"\")","v":""}]
["4200: Urarina",null,67,0,"",0,0,0,null,null,{"$f":"IF(C85<=$B$5,C85,\"\")","v":""},"","","","","","","","","","","","","","","","","","","","","","","","","","","","","","","","","","","","","","","","",""]
["4300: Wampis","Administrativos",68,0,"",0,0,0,null,null,"","","","","","","","","","","","","","","","","","","","","","","","","","","","","","","","","","","","","","","","","",""]
["4400: Yagua","15: (504)-Administrador o Contador",69,0,"",0,0,0,null,null,"","","","","","","","","","","","","","","","","","","","","","","","","","","","","","","","","","","","","","","","","",""]
["4500: Yaminahua","16: (505)-Otro personal profesional",70,0,"",0,0,0,null,null,"","","","","","","","","","","","","","","","","","","","","","","","","","","","","","","","","","","","","","","","","",""]
["4600: Yanesha","17: (506)-Auxiliar de Biblioteca",71,0,"",0,0,0,null,null,"","","","","","","","","","","","","","","","","","","","","","","","","","","","","","","","","","","","","","","","","",""]
["4700: Yine","18: (507)-Auxiliar de Laboratorios",72,0,"",0,0,0,null,null,"","","","","","","","","","","","","","","","","","","","","","","","","","","","","","","","","","","","","","","","","",""]
["4800: Nahua","19: (508)-Secretaria u oficinista",73,0,"",0,0,0,null,null,"","","","","","","","","","","","","","","","","","","","","","","","","","","","","","","","","","","","","","","","","",""]
["5100: Alemán","20: (511)-Asistente Administrativo",74,0,"",0,0,0,null,null,"","","","","","","","","","","","","","","","","","","","","","","","","","","","","","","","","","","","","","","","","",""]
["5200: Inglés","21: (512)-Personal de Servicio - Mantenimiento",75,0,"",0,0,0,null,null,"","","","","","","","","","","","","","","","","","","","","","","","","","","","","","","","","","","","","","","","","",""]
["5300: Italiano","22: (513)-Personal de Servicio - Cocina",76,0,"",0,0,0,null,null,"","","","","","","","","","","","","","","","","","","","","","","","","","","","","","","","","","","","","","","","","",""]
["5400: Japonés","23: (514)-Personal de Servicio - Limpieza",77,0,"",0,0,0,null,null,"","","","","","","","","","","","","","","","","","","","","","","","","","","","","","","","","","","","","","","","","",""]
["5500: Portugués","24: (515)-Personal de Servicio - Vigilante",78,0,"",0,0,0,null,null,"","","","","","","","","","","","","","","","","","","","","","","","","","","","","","","","","","","","","","","","","",""]
["5600: Ruso","25: (516)-Personal de Servicio - Otro",79,0,"",0,0,0,null,null,"","","","","","","","","","","","","","","","","","","","","","","","","","","","","","","","","","","","","","","","","",""]
["5700: Francés","26: (518)-Otro personal No profesional",80,0,"",0,0,0,null,null,"","","","","","","","","","","","","","","","","","","","","","","","","","","","","","","","","","","","","","","","","",""]
["5800: Otra lengua extranjera",null,81,0,"",0,0,0,null,null,"","","","","","","","","","","","","","","","","","","","","","","","","","","","","","","","","","","","","","","","","",""]
[null,null,82,0,"",0,0,0,null,null,"","","","","","","","","","","","","","","","","","","","","","","","","","","","","","","","","","","","","","","","","",""]
["308. Lengua Originaria",null,83,0,"",0,0,0,null,null,"","","","","","","","","","","","","","","","","","","","","","","","","","","","","","","","","","","","","","","","","",""]
["De: 0200 a 4800",null,84,0,"",0,0,0,null,null,"","","","","","","","","","","","","","","","","","","","","","","","","","","","","","","","","","","","","","","","","",""]
[null,null,85,0,"",0,0,0,null,null,"","","","","","","","","","","","","","","","","","","","","","","","","","","","","","","","","","","","","","","","","",""]
["309. Fuente de Financiamiento",null,86,0,"",0,0,0,null,null,"","","","","","","","","","","","","","","","","","","","","","","","","","","","","","","","","","","","","","","","","",""]
["01: Sector Educación",null,87,0,"",0,0,0,null,null,"","","","","","","","","","","","","","","","","","","","","","","","","","","","","","","","","","","","","","","","","",""]
["02: Otro sector público",null,88,0,"",0,0,0,null,null,"","","","","","","","","","","","","","","","","","","","","","","","","","","","","","","","","","","","","","","","","",""]
["03: Municipalidad",null,89,0,"",0,0,0,null,null,"","","","","","","","","","","","","","","","","","","","","","","","","","","","","","","","","","","","","","","","","",""]
["04: Gobierno Regional",null,90,0,"",0,0,0,null,null,"","","","","","","","","","","","","","","","","","","","","","","","","","","","","","","","","","","","","","","","","",""]
["05: APAFA",null,91,0,"",0,0,0,null,null,"","","","","","","","","","","","","","","","","","","","","","","","","","","","","","","","","","","","","","","","","",""]
["06: Otra fuente Privada",null,92,0,"",0,0,0,null,null,"","","","","","","","","","","","","","","","","","","","","","","","","","","","","","","","","","","","","","","","","",""]
[null,null,93,0,"",0,0,0,null,null,"","","","","","","","","","","","","","","","","","","","","","","","","","","","","","","","","","","","","","","","","",""]
["310. Condición Laboral",null,94,0,"",0,0,0,null,null,"","","","","","","","","","","","","","","","","","","","","","","","","","","","","","","","","","","","","","","","","",""]
["01: Nombrado",null,95,0,"",0,0,0,null,null,"","","","","","","","","","","","","","","","","","","","","","","","","","","","","","","","","","","","","","","","","",""]
["02: Contratado",null,96,0,"",0,0,0,null,null,"","","","","","","","","","","","","","","","","","","","","","","","","","","","","","","","","","","","","","","","","",""]
["03: No aplica",null,97,0,"",0,0,0,null,null,"","","","","","","","","","","","","","","","","","","","","","","","","","","","","","","","","","","","","","","","","",""]
[null,null,98,0,"",0,0,0,null,null,"","","","","","","","","","","","","","","","","","","","","","","","","","","","","","","","","","","","","","","","","",""]
["311. Modalidad de Contrato",null,99,0,"",0,0,0,null,null,"","","","","","","","","","","","","","","","","","","","","","","","","","","","","","","","","","","","","","","","","",""]
["Contrato Público",null,100,0,"",0,0,0,null,null,"","","","","","","","","","","","","","","","","","","","","","","","","","","","","","","","","","","","","","","","","",""]
["01: A plazo fijo D. Leg. 728",null,null,null,null,null,null,null,null,null,null,"","","","","","","","","","","","","","","","","","","","","","","","","","","","","","","","","","",""]
["02: Locación de Serv. / Honorarios","99: (999)-Auxiliar de Educación",null,null,null,null,null,null,null,null,"…","…","…","…","…","…","…","…","…","…","…","…","…","…","…","…","…","…","…","…","…","…","…","…","…","…","…","…","…","…","…","…","…","…","…","…","…","…","…","…"]
["03: CAS - D. Leg. 1057"]
["04: Contrato D. Leg. 276","322. Situación en el Cargo Directivo"]
["05: Contrato Ley 30328","01: Titular ratificado eval.2014"]
["06: Otra modalidad","02: Titular designado eval. 2015, 2016 y 2018"]
["Contrato Privado","03: Titular otro"]
["07: A plazo indefinido (Permanente)","04: Encargado por función, sin doc. formal"]
["08: Plazo fijo (Tiempo determinado)","05: Encargado"]
["09: A tiempo parcial (por horas)"]
["10: Locación de Serv. / Honorarios","323. Destaque o Licencia"]
["11: Otra modalidad","01: Cubriendo una licencia"]
[null,"02: De otra I.E./DRE/UGEL"]
["312. Máximo Nivel Educativo Alcanzado","03: No Aplica"]
["01: EP.Concluidos con título"]
["02: EP.Concluidos sin título"]
["03: EP.No concluidos"]
["04: NP.Concluidos con título","324. Jornada Laboral (Nombramiento / Contrato)"]
["05: NP.Concluidos sin título","40: 40 horas"]
["06: NP.No concluidos","30: 30 horas"]
["07: Secundaria","25: 25 horas"]
["08: Primaria","24: 24 horas"]
[null,"23: Menos 24 horas"]
["313. Especialidad del Título"]
["01: Educación Inicial","SI / NO"]
["02: Educación Primaria","SI"]
["03: E.I. Intercultural Bilingüe","NO"]
["04: E.P. Intercultural Bilingüe"]
["05: Educación Básica Alternativa","Parroquiales"]
["06: Educación Especial","05: APAFA"]
["07: Educación Física","06: Otra fuente Privada"]
["08: Educación Artística","01: Sector Educación"]
["09: E.S. Lengua y Literatura"]
["10: E.S. Comunicación"]
["11: E.S. Matemática y Física","336.2 ¿Cuál es el tipo de discapacidad?"]
["12: E.S. Matemática","01: Auditiva"]
["13: E.S. CCSS y Filosofía","02: Visual"]
["14: E.S. Ciencias Sociales","03: Física o Motora"]
["15: E.S. Ciencias Naturales","04: Otras"]
["16: E.S. Ciencia Tecnología y Ambiente"]
["17: E.S. Alimentación y Nutrición"]
["18: E.S. Biología y Química"]
["19: E.S. Historia y Geografía"]
["20: E.S. CC.HH. Sociales"]
["21: E.S. Idioma Inglés"]
["22: Educación Religiosa"]
["23: E.S. Educación Familiar"]
["24: E.T. Artes Industriales"]
["25: E.T. Artesanía"]
["26: E.T. Agropecuaria"]
["27: E.T. Construcción en madera"]
["28: E.T. Computación e Informática"]
["29: E.T. Carpintería/Ebanistería"]
["30: E.T. Electricidad"]
["31: E.T. Electrónica"]
["32: E.T. Ebanistería"]
["33: E.T. Industria del Vestido"]
["34: E.T. Industria del Vestido Alimentación y Alta Costura"]
["35: E.T. en Industria del Vestido y Alta Costura"]
["36: E.T.Técnica Esp. Ind. del Vestido Ind.Alimentaria y Artes"]
["37: E.T. Industria Alimentaria"]
["38: E.T. Mecánica Automotriz"]
["39: E.T. Mecánica de Producción"]
["40: E.T. Mecánica de Producción y Soldadura"]
["41: E.T. Textilería"]
["42: Otra pedagógica"]

{"sheet":"C400","index":4,"n_rows":94,"n_cols":23,"rows_kept":94,"cut":false,"hidden":false,"merged":[[15,18,15,20],[1,5,1,22],[2,5,2,22],[36,19,36,22],[39,3,42,4],[32,3,33,4],[35,3,38,4],[43,3,44,4],[45,3,46,4],[47,3,54,4],[55,3,56,4],[66,19,66,22],[92,6,92,8],[93,19,93,22],[31,9,34,9],[31,10,34,10],[31,11,34,11]]}
[]
[null,null,null,null,null,"CENSO EDUCATIVO 2024"]
[null,null,null,null,null,"MATRÍCULA, DOCENTES Y RECURSOS"]
[]
[]
[]
[null,null,"331. ÁREA DE PSICOLOGÍA"]
[null,null,null,"331.1 DURANTE EL PRESENTE AÑO, ¿SE CUENTA CON ALGÚN PROFESIONAL  DE  PSICOLOGÍA INCORPORADO",null,null,null,null,null,null,null,null,null,null,"331.2. ¿A TRAVÉS DE QUÉ MECANISMO SE INCORPORÓ AL PROFESIONAL DE PSICOLOGÍA?"]
[null,null,null,"   A LA INSTITUCIÓN EDUCATIVA/PROGRAMA EDUCATIVO?",null,null,null,null,null,null,null,null,null,null,null,"Marque con una “X”, una opcion"]
[]
[null,null,null,null,null,null,null,null,null,null,null,null,null,null,null,"Contratación a través de UGEL (alguna intervención o estrategia)",null,null,null,null,null,""]
[null,null,null,"Sí  ",null,null,null,null,null,null,null,null,null,null,null,"Contratación a través de UGEL (identificación de necesidad)",null,null,null,null,null,""]
[null,null,null,null,null,null,null,null,null,null,null,null,null,null,null,"Prácticas profesionales",null,null,null,null,null,""]
[null,null,null,null,null,null,null,null,null,null,null,null,null,null,null,"Servicio Rural y Urbano Marginal de Salud (Serums)",null,null,null,null,null,""]
[null,null,null,"No  ",null,"     Pase a la prgunta 401",null,null,null,null,null,null,null,null,null,"Pasantias",null,null,null,null,null,""]
[null,null,null,null,null,null,null,null,null,null,null,null,null,null,null,"Otro",null,null,null,null,null,""]
[]
[]
[null,null,"400. FORTALECIMIENTO DE LA GESTIÓN"]
[]
[null,null,"401. ESTE SERVICIO/NIVEL EDUCATIVO, ¿COORDINA ALGUNA ACCIÓN CON EL GOBIERNO LOCAL (DISTRITAL O PROVINCIAL)",null,null,null,null,null,null,null,null,null,null,null,null,"405. ¿ACTUALMENTE CUENTA CON ALGUNA ESTRATEGIA O ACCIONES EN EL QUE PUEDA DIALOGAR CON DIRECTORES"]
[null,null,null," O ALGUNA EMPRESA PRIVADA U ONG PARA MEJORAR LA LA PRESTACIÓN DEL SERVICIO EDUCATIVO?",null,null,null,null,null,null,null,null,null,null,null,null,"DE OTRAS IIEE PARA COMPARTIR EXPERIENCIAS Y DESARROLLAR ESTRATEGIAS PARA RESOLVER PROBLEMAS"]
[null,null,null,null,null,null,null,null,null,null,null,null,null,null,null,null,"DE LA GESTIÓN DE SU SERVICIO/NIVEL EDUCATIVO?"]
[]
["1: Siempre",null,null,"Sí","",null,"No",null,"Pase a la pregunta 403",null,null,null,null,null,null,"Sí    ","",null,"No    "]
["2: A Veces"]
["3: Nunca"]
[null,null,"402. FRECUENCIA DE LA ACCION QUE AYUDA EL GOBIERNO LOCAL PARA MEJORAR LA PRESTACIÓN DEL SERVICIO"]
[null,null,null,"Solo si marco “SI” en la pregunta 401 detallar la acción",null,null,null,null,null,null,null,null,null,null,null,null,"¿Dónde lo desarrolla?"]
[null,null,null,null,null,null,null,null,null,null,null,null,null,null,null,null,"Marque con una “X”, una opción"]
[null,null,null,null,null,null,null,null,null,null,null,null,null,null,null,null,"","La misma IIEE"]
[null,null,{"$f":"SUM(C36:C57)","v":0},null,null,null,null,null,null,"Distrital","Provincial","Empresa privada u ONG",null,null,null,null,"","Otra IIEE"]
[null,null,null,"COMPO- NENTE",null,null,null,null,null,null,null,null,null,null,null,null,"","IIEE de red educativa"]
[null,null,null,null,null,null,"ACCIÓN",null,null,null,null,null,"FRECUENCIA",null,null,null,"","UGEL"]
[null,null,null,null,null,null,null,null,null,null,null,null,null,null,null,null,"","DRE/GRE"]
["01",null,{"$f":"IF(M36<>\"\",1,0)","v":0},"Infraes- tructura",null,"Proyecto de inversión pública para el mejoramiento o ampliación …",null,null,null,"","","","",null,null,null,"","Espacios virtuales (webinar, talleres, etc)"]
["02",null,{"$f":"IF(M37<>\"\",1,0)","v":0},null,null,"Apoyo y asistencia técnica para el uso de recursos de mantenimiento",null,null,null,"","","","",null,null,null,"","Otro",null,""]
["03",null,0,null,null,"Gestiones para el acceso a servicios básicos de IIEE ",null,null,null,"","","",""]
["04",null,0,null,null,"Adquisición de mobiliario y equipamiento para la IIEE",null,null,null,"","","",""]
["05",null,0,"Aprendi-\nzajes",null,"Proyecto de inversión pública para la mejora de los aprendizajes",null,null,null,"","","",""]
["06",null,0,null,null,"Programas de reforzamiento escolar",null,null,null,"","","","",null,null,"406. ¿QUÉ TAN INTERESADO SE ENCONTRARÍA DE PARTICIPAR EN ESPACIOS EN LOS QUE SE REALICE TRABAJO"]
["07",null,0,null,null,"Apoyo con material educativo",null,null,null,"","","","",null,null,null,"COLABORATIVO CON DIRECTORES DE OTRAS IIEE PARA DIALOGAR SOBRE LOS PROBLEMAS DE LA GESTIÓN"]
["08",null,0,null,null,"Apoyo a las visitas domiciliarias",null,null,null,"","","","",null,null,null,"ESCOLAR?"]
["09",null,0,"Docentes",null,"Contratación de docentes",null,null,null,"","","",""]
["10",null,0,null,null,"Talleres o cursos de capacitación",null,null,null,"","","","",null,null,null,"Marque con una “X”, una opción"]
["11",null,0,"No Docentes",null,"Contratación de no docentes",null,null,null,"","","",""]
["12",null,0,null,null,"Talleres o cursos de capacitación",null,null,null,"","","",""]
["13",null,0,"Gestión",null,"Articulación local con actores públicos y privados a nivel local",null,null,null,"","","",""]
["14",null,0,null,null,"Atención de casos en DEMUNA",null,null,null,"","","","",null,null,null,null,"","Interesado","","Poco interesado",null,"Nada interesado"]
["15",null,0,null,null,"Articulación con UGEL y DRE de su ámbito",null,null,null,"","","",""]
["16",null,0,null,null,"Gestiones para la instalación de servicios básicos de conectividad",null,null,null,"","","",""]
["17",null,0,null,null,"Apoyo con alimentación para estudiantes",null,null,null,"","","",""]
["18",null,0,null,null,"Vivienda y alimentación para docentes (zonas rurales, fronteras, etc)",null,null,null,"","","",""]
["19",null,0,null,null,"Apoyo con movilidad local para estudiantes y docentes",null,null,null,"","","",""]
["20",null,0,null,null,"Apoyo a los talleres con familias",null,null,null,"","","",""]
["21",null,0,"Recupe-\nración",null,"Promoción de acciones comunitarias para identificación de …",null,null,null,"","","","",null,null,"407. SEÑOR(A) DIRECTOR(A), DURANTE EL AÑO 2023 Y HASTA LA FECHA DE APLICACIÓN DEL CENSO EDUCATIVO 2024,"]
["22",null,0,null,null,"Impulso del registro nominal de estudiantes en Alerta Escuela por …",null,null,null,"","","","",null,null,null,"¿A TRAVÉS DE QUÉ MEDIO RECIBIÓ LA CAPACITACIÓN EL PERSONAL AUXILIAR DE EDUCACIÓN?"]
[null,null,null,null,null,null,null,null,null,null,{"$f":"COUNTIF(J36:L57,\"X\")","v":0},null,{"$f":"COUNTIF(M36:M57,\"3: Nunca\")","v":0},null,null,null,"Marque con una “X”, una o más opciones"]
[]
[null,null,"403. DURANTE EL ÚLTIMO MES, EN PROMEDIO, ¿CUÁNTAS HORAS SEMANALES, ADICIONALES A SU JORNADA LABORAL,"]
[null,null,null,"USTED CONSIDERA QUE HA DESTINADO PARA REALIZAR ACTIVIDADES RELACIONADAS A SU TRABAJO COMO",null,null,null,null,null,null,null,null,null,null,null,null,null,"Perueduca, cursos específicos para auxiliares"]
[null,null,null,"DIRECTOR?",null,null,null,null,null,null,null,null,null,null,null,null,null,"Perueduca, cursos para la comunidad educativa"]
[null,null,null,null,null,null,null,null,null,null,null,null,null,null,null,null,null,"Mi Institución Educativa"]
[null,null,null,"Horas semanales adicionales",null,null,null,null,null,null,null,null,null,null,null,null,null,"Mi UGEL"]
[null,null,null,null,null,null,null,null,null,null,null,null,null,null,null,null,null,"MINEDU"]
[null,null,"404. COMO DIRECTOR/A DE ESTE SERVICIO/NIVEL EDUCATIVO, ¿CUÁNTO TIEMPO DE SU DÍA TOMA REALIZAR ACTIVIDADES",null,null,null,null,null,null,null,null,null,null,null,null,null,null,"DRE"]
[null,null,null," ADMINISTRATIVAS?  (CONSIDERE HORAS CRONOLÓGICAS)",null,null,null,null,null,null,null,null,null,null,null,null,null,"Otras instituciones"]
[null,null,null,"Marque con una “X”, una opción",null,null,null,null,null,null,null,null,null,null,null,null,null,"No cuento con personal auxiliar de educación"]
[null,null,null,null,null,null,null,null,null,null,null,null,null,null,null,null,null,"El personal auxiliar de educación no recibió capacitación"]
[null,null,null,null,null,"Menos de una hora"]
[null,null,null,null,null,"Entre 1 y 3 horas"]
[null,null,null,null,null,"Entre 4 y 6 horas"]
[null,null,null,null,null,"Más de 6 horas"]
[]
[]
[null,null,"408. SEÑOR(A) DIRECTOR(A), ¿CUÁL CONSIDERA USTED COMO PRINCIPAL TEMA QUE REQUIERE COMO CAPACITACIÓN",null,null,null,null,null,null,null,null,null,null,null,null,"410. ESTE SERVICIO/NIVEL EDUCATIVO QUE DIRIGE, ¿DURANTE EL PRESENTE AÑO HA RECIBIDO O VIENE RECIBIENDO"]
[null,null,null,"EL PERSONAL AUXILIAR DE EDUCACIÓN, PARA MEJORAR SU DESEMPEÑO?",null,null,null,null,null,null,null,null,null,null,null," APOYO DE ALGUNA EMPRESA PRIVADA O DE ALGUNA ONG EN TEMAS DE MEJORA DE INFRAESTRUCTURA, "]
[null,null,null,"Marque con una “X”, una opción",null,null,null,null,null,null,null,null,null,null,null,"MOBILIARIO Y EQUIPAMIENTO O  CAPACITACIÓN U OTROS?"]
[]
[null,null,null,null,null,"Habilidades blandas (intelig. emocional, comunic. asertiva, manejo de conflictos, etc)"]
[null,null,null,null,null,"Habilidades duras (TICs, primeros aux., uso y peligros de internet, etc.)",null,null,null,null,null,null,null,null,null,null,"Sí","",null,null,"No  ",null,"Pase a la pregunta 501"]
[null,null,null,null,null,"Relación con los estudiantes (el juego, soporte socioem., prevención de la violencia escolar (bullying)"]
[null,null,null,null,null,"No cuento con personal auxiliar de educación"]
[null,null,null,null,null,null,null,null,null,null,null,null,null,null,null,null,null,null,null,null,null,""]
[null,null,"409. SEÑOR(A) DIRECTOR(A), DURANTE EL AÑO 2023, ¿EL PERSONAL AUXILIAR DE EDUCACIÓN DESEMPEÑÓ O",null,null,null,null,null,null,null,null,null,null,null,null,"411. INDIQUE EL TIPO DE APOYO QUE HA RECIBIDO DE LA EMPRESA PRIVADA U ONG MENCIONADA EN SU"]
[null,null,null,"DESEMPEÑA OTRAS LABORES ADICIONALES A SU ROL COMO AUXILIAR DE EDUCACIÓN?",null,null,null,null,null,null,null,null,null,null,null," RESPUESTA ANTERIOR"]
[null,null,null,"Marque con una “X”, una o más opciones",null,null,null,null,null,null,null,null,null,null,null,null,"Marque con una “X” una o más opciones"]
[]
[null,null,null,null,"","No realizó/realiza otras labores adicionales en la IE"]
[null,null,null,null,"","Trabaja como docente",null,null,null,null,null,null,null,null,null,null,"","Infraestructura"]
[null,null,null,null,"","Trabaja como personal administrativo en la IE",null,null,null,null,null,null,null,null,null,null,"","Mobiliario"]
[null,null,null,null,"","Trabaja en otra IE",null,null,null,null,null,null,null,null,null,null,"","Equipamiento"]
[null,null,null,null,"","Otro",null,null,null,null,null,null,null,null,null,null,"","Capacitación"]
[null,null,null,null,null,"No cuento con personal auxiliar de educación",null,null,null,null,null,null,null,null,null,null,"","Otro"]

{"sheet":"C500","index":5,"n_rows":153,"n_cols":23,"rows_kept":153,"cut":false,"hidden":false,"merged":[[108,3,108,7],[108,8,108,10],[108,11,108,18],[108,19,108,21],[109,3,109,7],[109,8,109,10],[109,11,109,18],[109,19,109,21],[106,19,106,21],[107,3,107,7],[107,8,107,10],[107,11,107,18],[107,19,107,21],[84,6,84,7],[84,8,84,9],[87,14,87,16],[106,3,106,7],[106,8,106,10],[106,11,106,18],[79,13,83,15],[79,17,79,19],[79,20,79,22],[80,6,80,7],[80,16,82,16],[80,17,82,17],[80,18,83,18],[80,19,82,19],[80,20,82,20],[80,21,83,21],[80,22,82,22],[82,6,82,7],[82,8,82,9],[83,6,83,7],[83,8,83,9],[46,18,46,19],[57,16,57,19],[64,3,64,8],[68,4,68,8],[78,8,78,10],[46,4,46,6],[46,8,46,9],[46,11,46,13],[46,14,46,15],[46,16,46,17],[45,8,45,9],[45,11,45,13],[45,14,45,15],[45,16,45,17],[45,18,45,19],[44,8,44,9],[44,11,44,13],[44,14,44,15],[44,16,44,17],[44,18,44,19],[43,8,43,9],[43,11,43,13],[43,14,43,15],[43,16,43,17],[43,18,43,19],[42,8,42,9],[42,11,42,13],[42,14,42,15],[42,16,42,17],[42,18,42,19],[38,21,40,21],[39,8,39,9],[39,16,39,17],[39,18,39,19],[41,8,41,9],[41,11,41,13],[41,14,41,15],[41,16,41,17],[41,18,41,19],[37,7,38,7],[38,3,39,6],[38,11,40,13],[38,14,40,15],[38,20,40,20],[14,9,14,10],[15,4,16,7],[15,9,17,9],[15,10,17,10],[1,4,1,20],[2,4,2,20]]}
[]
[null,null,null,null,"CENSO EDUCATIVO 2024"]
[null,null,null,null,"MATRÍCULA, DOCENTES Y RECURSOS"]
[]
[]
[]
[null,"500. GESTIÓN DE RIESGO DE DESASTRES"]
[]
[null,null,"501. EN EL PRESENTE AÑO, ESTE SERVICIO/NIVEL EDUCATIVO, ¿HA INCORPORADO LA DEFENSA ",null,null,null,null,null,null,null,null,null,null,"502. SOBRE LA DEFENSA NACIONAL Y LA GESTIÓN DEL RIESGO DE DESASTRES EN ESTE SERVICIO/NIVEL "]
[null,null,null,"NACIONAL Y GESTIÓN DEL RIESGO DE DESASTRES EN SUS INSTRUMENTOS DE GESTIÓN VIGENTES?",null,null,null,null,null,null,null,null,null,null,"EDUCATIVO, ATIENDA LAS SIGUIENTES PREGUNTAS:"]
[]
[null,null,null,"Sí  ",null,null,null,"No  ",null,null,null,null,null,null,"Seleccione “Si” o “No” según corresponda en atención a cada pregunta."]
[null,null,null,null,null,null,null,null,null,null,null,null,null,null,null,"Documentos de Gestión",null,null,null,null,null,"Respuesta"]
[]
[null,null,null,"Precise los documentos de gestión",null,null,null,null,null,"Marcar con “X” ",null,null,null,null,null,null,null,null,null,null,null,"SI - NO"]
[null,null,null,null,"Documentos de Gestión",null,null,null,null,"Gestión de Riesgo de Desastres","Seguridad y Defensa Nacional",null,null,null,"¿La IE cuenta con un croquis con rutas de evacuación?"]
[null,null,null,null,null,null,null,null,null,null,null,null,null,null,"¿La IE cuenta con planos de señalización con rutas de evacuación?"]
[null,null,null,null,null,null,null,null,{"$f":"SUM(I19:I21)","v":0}]
[null,null,"01","Proyecto Educativo Institucional (PEI)",null,null,null,null,{"$f":"COUNTIF(J19:K19,\"X\")","v":0},null,null,null,null,null,"Nota:"]
[null,null,"02","Plan Anual de Trabajo (PAT)",null,null,null,null,{"$f":"COUNTIF(J20:K20,\"X\")","v":0},null,null,null,null,null,"La comunidad educativa está conformada por estudiantes, padres de familia, profesores, directivos, "]
[null,null,"03","Proyecto Currícular Institucional (PCI)",null,null,null,null,{"$f":"COUNTIF(J21:K21,\"X\")","v":0},null,null,null,null,null,"administrativos, ex alumnos y miembros de la comunidad local."]
[null,null,null,null,null,null,null,null,null,{"$f":"COUNTIF(J19:J21,\"X\")","v":0},{"$f":"COUNTIF(K19:K21,\"X\")","v":0}]
[]
[]
[null,null,"503. EN EL PRESENTE AÑO, LOS MIEMBROS DE ESTE SERVICIO/NIVEL EDUCATIVO, ¿HAN SIDO CAPACITADOS Y CERTIFICADOS EN MATERIA DE GESTIÓN INTEGRAL \nDEL RIESGO DE DESASTRES?"]
[]
[null,null,null,"Sí  ",null,null,null,"No  "]
[]
[]
[null,null,null,null,null,"Alguna de ellos fue desarrollada por:"]
[]
[null,null,null,null,null,null,null,"SI - NO"]
[null,null,null,null,null,"DRE/GRE"]
[null,null,null,null,null,"UGEL"]
[]
[null,null,null,"Complete la tabla"]
[]
[null,null,null,null,null,null,null,"¿Se realizó?","Cantidad de personas capacitadas",null,null,null,null,null,null,null,"Cantidad de personas certificadas"]
[null,null,null,"Tipo de Capacitación",null,null,null,null,null,null,null," N° de  adminis-  trativos",null,null," N° de capacitados\nque pertenecen a la brigada de EA y GRD",null,null,null,null,null," N° de adminis-  trativos"," N° de capacitados\nque pertenecen a la brigada de EA y GRD"]
[null,null,null,null,null,null,null,null," N° de directores",null," N° de docentes",null,null,null,null,null," N° de directores",null," N° de docentes"]
[null,null,null,null,null,null,null,"SI - NO"]
[null,null,"01","Curso",null,null,null,null,null,null,null,null,null,null,null,null,null,null,null,null,null,null,{"$f":"SUM(I42:V42)","v":0}]
[null,null,"02","Taller de capacitación",null,null,null,null,null,null,null,null,null,null,null,null,null,null,null,null,null,null,{"$f":"SUM(I43:V43)","v":0}]
[null,null,"03","Reuniones de trabajo institucionales",null,null,null,null,null,null,null,null,null,null,null,null,null,null,null,null,null,null,0]
[null,null,"04","Foro",null,null,null,null,null,null,null,null,null,null,null,null,null,null,null,null,null,null,0]
[null,null,"05","Webinar",null,null,null,null,null,null,null,null,null,null,null,null,null,null,null,null,null,null,0]
[null,null,"06","Otros",null,null,null,null,null,null,null,null,null,null,null,null,null,null,null,null,null,null,0]
[null,null,null,null,null,null,null,{"$f":"COUNTIF(H42:H47,\"SI\") + COUNTIF(H42:H47,\"NO\")","v":0}]
[]
[null,null,"504. EN EL AÑO 2023, ANTE LA DETECCIÓN DEL PELIGRO INMINENTE, EMERGENCIA O DESASTRE,",null,null,null,null,null,null,null,null,null,null,"505. EN EL PRESENTE AÑO, ESTE SERVICIO/NIVEL EDUCATIVO, ¿HA PARTICIPADO EN CAMPAÑAS "]
[null,null,null,"¿ESTE SERVICIO/NIVEL EDUCATIVO REPORTA AL ESPACIO DE MONITOREO Y SEGUIMIENTO",null,null,null,null,null,null,null,null,null,null,"COMUNICACIONALES DE GESTIÓN DE RIESGO DE DESASTRES?"]
[null,null,null,"SECTORIAL (EMSS) DE LA UGEL?"]
[null,null,null,null,null,null,null,null,null,null,null,null,null,null,"Sí  ",null,null,null,"No  "]
[null,null,null,"Sí  ",null,null,"¿Ha sido capacitado sobre el proceso a seguir para reportar?"]
[]
[null,null,null,null,null,null,null,"Sí  ",null,null,null,null,null,null,null,null,"Indique, ¿En qué acciones participó o recibió?"]
[]
[null,null,null,null,null,null,null,"No  ",null,null,null,null,null,null,null,null,"ITEMS",null,null,null,"Marcar con X"]
[null,null,null,null,null,null,null,null,null,null,null,null,null,null,null,null,"Pasacalle"]
[null,null,null,null,null,null,null,"No Sabe  ",null,null,null,null,null,null,null,null,"Feria"]
[null,null,null,"No  ",null,null,null,null,null,null,null,null,null,null,null,null,"Activaciones motivadoras"]
[null,null,null,null,null,null,null,null,null,null,null,null,null,null,null,null,"Conferencias"]
[null,null,null,null,null,null,null,null,null,null,null,null,null,null,null,null,"Recepción de afiches"]
[null,null,null,"¿Por qué?",null,null,"Marque con una “X”, una opción",null,null,null,null,null,null,null,null,null,"Recepción murales de GRD"]
[null,null,null,"ITEMS",null,null,null,null,null,"Marcar con X",null,null,null,null,null,null,"Post en redes sociales"]
[null,null,null,"No se tuvo emergencia en territorio",null,null,null,null,null,null,null,null,null,null,null,null,"Post radiales"]
[null,null,null,"No se cuenta con los instrumentos y/o herramientas"]
[null,null,null,"No se conoce el procedimiento"]
[null,null,null,"Otro"]
[]
[]
[null,null,"506. ESTE SERVICIO/NIVEL EDUCATIVO, ¿CUENTA CON LA BRIGADA DE EDUCACIÓN AMBIENTAL ",null,null,null,null,null,null,null,null,null,null,"507. ESTE SERVICIO/NIVEL EDUCATIVO, ¿CUENTA CON ALGUNA EXPERIENCIA EXITOSA O BUENA PRÁCTICA"]
[null,null,null," Y GESTIÓN DE RIESGO DE DESASTRES?",null,null,null,null,null,null,null,null,null,null," DOCENTE Y/O GESTIÓN  ESCOLAR ENMARCADAS EN ALGUNA DE LAS LÍNEAS ESTRATÉGICAS?"]
[]
[null,null,null,"Sí",null,null,null,"No  ","",null,null,null,null,null,"Sí  ",null,null,null,"No  ",""]
[]
[]
[null,null,null,null,"Documento",null,null,"Resolución",null,null,null,null,null,null,"Complete la tabla"]
[null,null,null,null,null,null,"","Otro","",null,null,null,null,"Seleccione “Sí” o “No” para cada línea estratégica e ingrese los años según corresponda"]
[null,null,null,null,null,null,null,null,null,null,null,null,null,"Línea estratégica",null,null,null,"Experiencia exitosa",null,null,"Buena práctica docente y/o Gestión escolar"]
[null,null,null,null,"Número",null,null,null,null,null,null,null,null,null,null,null,null,"¿Cuenta con experiencia exitosa?","Año de la experiencia exitosa","Se socializó con otras entidades","¿Cuenta con buena práctica docente y Gestión escolar?","Año de la buena práctica docente y/o Gestión escolar","Se socializó con otras entidades"]
[]
[null,null,null,null,null,null,"Desde:",null,"Hasta:"]
[null,null,null,null,"Vigencia",null,"DD/MM/AAAA",null,"DD/MM/AAAA",null,null,null,null,null,null,null,null,"SI / NO",null,"SI / NO","SI / NO",null,"SI / NO"]
[null,null,null,null,null,null,null,null,null,null,null,null,"01","Seguridad y Defensa Nacional"]
[null,null,null,null,null,null,null,null,null,null,null,null,"02","Gestión del Riesgo de Desastre"]
[null,null,null,null,null,null,null,null,null,null,null,null,"03","Adaptación al cambio climático"]
[null,null,null,null,null,null,null,null,null,null,null,null,"04","Otro"]
[null,null,null,null,null,null,null,null,null,null,null,null,null,null,null,null,null,{"$f":"COUNTIF(R85:R88,\"SI\")+COUNTIF(R85:R88,\"NO\")","v":0},null,null,{"$f":"COUNTIF(U85:U88,\"SI\")+COUNTIF(U85:U88,\"NO\")","v":0},"",{"$f":"CONCATENATE(R88,U88)","v":""}]
[null,null,null,null,null,null,null,null,null,null,null,null,null,null,null,null,null,null,null,null,null,"",""]
[null,null,"508. ESTE SERVICIO/NIVEL EDUCATIVO, ¿PARTICIPÓ EN LOS SIMULACROS CONVOCADOS POR MINEDU Y/O INDECI? "]
[]
[]
[null,null,null,"Sí  ",null,null,null,"No  "]
[]
[]
[null,null,null,null,null,"Complete la tabla"]
[]
[null,null,null,null,null,null,"ITEMS",null,null,"Marcar con X"]
[null,null,null,null,null,"Primer Simulacro"]
[null,null,null,null,null,"Segundo Simulacro"]
[null,null,null,null,null,"Tercer Simulacro"]
[]
[]
[null,"DATOS DEL DIRECTOR(A) / RESPONSABLE DEL LLENADO DE LA CÉDULA"]
[]
[null,null,null,"NOMBRES Y APELLIDOS",null,null,null,null,"CARGO",null,null,"CORREO ELECTRÓNICO",null,null,null,null,null,null,null,"TELÉFONO"]
[]
[]
[]
[]
[]
[]
[]
["DIRECTOR(A)"]
["SUB DIRECTOR(A)"]
["DOCENTE"]
["COORDINADOR(A)"]
["ASESOR"]
["ADMINISTRATIVO"]
["ASISTENTE"]
["AUXILIAR"]
["SECRETARIA(O)"]
["ESTADÍSTICO"]
["ESPECIALISTA"]
["BIBLIOTECARIO"]
["CARE"]
["COMANDANTE PNP"]
["CONTADOR"]
["DAIP"]
["DIGITADOR(A)"]
["GERENTE"]
["JEFE ACADÉMICO"]
["JEFE ADMINISTRATIVO"]
["JEFE DE ÁREA"]
["JEFE DE LABORATORIO"]
["JEFE DE PERSONAL"]
["JEFE DE SEDE"]
["JEFE DE UNIDAD"]
["OFICINISTA"]
["OPERADOR DE SISTEMAS"]
["PERSONAL DE SERVICIO"]
["PROGRAMADOR"]
["PROMOTOR(A)"]
["PSICOLOGO"]
["REGISTRADOR(A)"]
["REPRESENTANTE LEGAL"]
["SOPORTE TECNOLOGICO"]
["TÉCNICO ADMINISTRATIVO"]
["TESORERO(A)"]
["TRABAJADOR SOCIAL"]
["TUTOR"]
["OTROS"]

{"sheet":"Enviar","index":6,"n_rows":9,"n_cols":4,"rows_kept":9,"cut":false,"hidden":false,"merged":[[0,1,0,4],[1,1,1,4]]}
[null,"CENSO EDUCATIVO 2024"]
[null,"MATRÍCULA, DOCENTES Y RECURSOS"]
[]
[]
[null,null,"Paso 1:","Realice el ENVÍO con su clave EOL."]
[]
[null,null,"Paso 2:","Una vez realizado el ENVÍO,  Revise su constancia de envio."]
[]
[null,null,"  ADVERTENCIA","ASEGÚRESE DE REGISTRAR TODA LA INFORMACIÓN DEL NIVEL INFORMANTE"]